Cogmind - Beta 14 @@@ ROGUE MODE // 2024.09.01 @ 23:04:35 Player: Pogmind Result: Heading to fleet! Performance ------------- Evolutions (9) 4500 Regions Visited (31) 6200 Robots Destroyed (667) 3335 Value Destroyed (32929) 32929 Prototype IDs (319) 6380 Alien Tech Used (15) 3000 Bonus (78406) 78406 TOTAL SCORE: 134750 Bonus ------- Triggered High Security 1000 High Alert Combat Kills 19667 Follower Combat Kills 8735 Network Hubs Disabled 800 Registered with UFD 300 Met Data Miner 300 Met Warlord at Base 500 MAIN.C Attacked Warlord 500 Warlord Defense Kills 442 Built Enhanced Grunts 300 A7 Reached Mainframe 300 Met R17 at Cetus 500 Used Core Reset Matrix 3000 Met R17 at Research 2000 Recovered Sigix Corpse 2000 Destroyed MAIN.C Guards 500 Met MAIN.C 5000 Destroyed MAIN.C Shell 5000 Destroyed MAIN.C 10000 Met Architect 300 Destroyed A8 300 Destroyed A6 400 Destroyed A5 500 Destroyed A4 700 Destroyed A3 800 Destroyed A2 1000 Destroyed Architect 15000 Win 3000 Friendly Fire -4438 Cogmind --------- Core Integrity 880/1600 Matter 285/300 Energy 1568/1630 System Corruption 0% Temperature Cool (24) Movement Flying (21) Location To Fleet Rendezvous Parts ------- > --- POWER (2) -------- Light Particle Reactor Improved Quantum Reactor > --- PROPULSION (7) --- Cooled Field Propulsion Drive Cooled Field Propulsion Drive Cooled Field Propulsion Drive Cooled Impulse Thruster Impulse Thruster Array Experimental Q-thruster > --- UTILITY (12) ----- Experimental Energy Well Experimental Energy Well Advanced Quantum Shading Machine ST Field Compressor Weapon Mount Experimental Core Analyzer Improved Armor Integrity Analyzer Femtoactuators Experimental Reaction Control System Experimental Phase Shifter Experimental Utility Shielding Centrium Linked Plating > --- WEAPON (4) ------- Sigix Broadsword Sigix Broadsword > --- INVENTORY (7) ---- Matter Drive Experimental Utility Shielding AEGIS Remote Shield Nanosword Sigix Corpse Peak State ------------ > --- POWER ------------ Matter Drive > --- PROPULSION ------- Cooled Field Propulsion Drive Cooled Field Propulsion Drive Cooled Field Propulsion Drive Cooled Impulse Thruster Impulse Thruster Array Experimental Q-thruster > --- UTILITY ---------- Desublimator Experimental Energy Well Experimental Energy Well Advanced Quantum Shading Machine Weapon Mount Experimental Core Analyzer Improved Armor Integrity Analyzer Experimental Reaction Control System Experimental Phase Shifter Experimental Utility Shielding Centrium Linked Plating AEGIS Remote Shield > --- WEAPON ----------- Sigix Broadsword Sigix Broadsword > --- INVENTORY -------- Improved Quantum Reactor Improved Quantum Reactor ST Field Compressor Experimental Utility Shielding High-powered Transdimensional Reconstructor Nanosword Plasma Lance [Rating: 258] Favorites ----------- Power Graviton Reactor Engine Ion Engine Power Core Micro Nuclear Core Reactor Graviton Reactor Propulsion Cooled Field Propulsion Drive Treads Light Treads Leg High-density Centrium Leg Wheel Armored Wheel Hover Unit Cooled Antigrav System Flight Unit Cooled Field Propulsion Drive Utility Experimental Utility Shielding Device Experimental Sensor Array Storage Medium Storage Unit Processor Improved Signal Interpreter Hackware Experimental Hacking Suite Protection Experimental Utility Shielding Weapon Mini Smartbomb Launcher Energy Gun Subdweller Laser Energy Cannon Heavy Phase Cannon Ballistic Gun Assault Rifle Ballistic Cannon Perforator Launcher Mini Smartbomb Launcher Special Weapon Mining Laser Impact Weapon Powered Hammer Slashing Weapon Sigix Broadsword Piercing Weapon Lance Special Melee Weapon Datajack Build | -11 -10 -10 -9 -9 -6 -6 -6 -6 -5 -5 -5 -5 -5 -5 -5 -5 -4 -4 -4 -4 -4 -4 -3 -3 -3 -2 -2 -2 -1 -1 -1 ------- Run | Yrd Mat Sub Rec Scr Fac Low Low Dat Pro Fac Was Fac Ext Cet Arc Hub Fac Was Fac Upp Upp War Pro Res Tes Res Qua Sec Acc Com Ac0 Slots Evolved 17 | . . . . . 8 . . . . 2 . . . . . . 2 . . . . . . 2 . 2 . . 1 . . Power 1 | . . . . . 1 . . . . . . . . . . . . . . . . . . . . . . . . . . Propulsion 5 | . . . . . 3 . . . . 1 . . . . . . . . . . . . . . . 1 . . . . . Utility 9 | . . . . . 4 . . . . 1 . . . . . . 2 . . . . . . 2 . . . . . . . Weapon 2 | . . . . . . . . . . . . . . . . . . . . . . . . . . 1 . . 1 . . Parts Attached 983 | 6 16 50 3 7 81 12 8 5 2 24 . 25 14 13 6 11 22 1 92 8 14 21 14 21 31 30 41 38 171 149 47 Power 57 | 1 2 2 1 . 7 1 3 . . 1 . 1 . . . . 1 . 4 . . 3 . 4 . 1 . . . 19 6 Engine 16 | 1 2 2 1 . 5 1 2 . . . . 1 . . . . . . 1 . . . . . . . . . . . . Core 2 | . . . . . 2 . . . . . . . . . . . . . . . . . . . . . . . . . . Reactor 39 | . . . . . . . 1 . . 1 . . . . . . 1 . 3 . . 3 . 4 . 1 . . . 19 6 Propulsion 97 | 2 1 9 2 . 14 . . . 1 1 . 3 . 3 . . 2 . 4 . . 8 . . 3 2 4 . 23 12 3 Treads 18 | 2 1 3 . . 11 . . . . . . . . 1 . . . . . . . . . . . . . . . . . Leg 3 | . . . . . . . . . . . . . . . . . 1 . . . . 1 . . 1 . . . . . . Wheel 9 | . . 6 2 . 1 . . . . . . . . . . . . . . . . . . . . . . . . . . Hover 1 | . . . . . . . . . . . . . . . . . . . . . . 1 . . . . . . . . . Flight 66 | . . . . . 2 . . . 1 1 . 3 . 2 . . 1 . 4 . . 6 . . 2 2 4 . 23 12 3 Utility 545 | 1 6 16 . 5 37 6 5 4 . 13 . 13 7 6 6 7 7 1 46 7 9 6 10 8 7 25 22 28 120 91 26 Device 386 | . 3 9 . 3 19 3 4 1 . 8 . 7 7 5 6 7 2 . 36 7 9 5 10 7 4 23 16 22 94 55 14 Storage 35 | 1 1 3 . 2 1 . . 1 . 1 . . . . . . 1 . . . . 1 . . . 1 4 3 6 7 2 Processor 41 | . . . . . 5 1 . . . . . . . . . . 1 1 2 . . . . 1 1 . 2 3 13 10 1 Hackware 29 | . . . . . . . . 2 . 3 . 4 . . . . 3 . 8 . . . . . 1 1 . . . 3 4 Protection 54 | . 2 4 . . 12 2 1 . . 1 . 2 . 1 . . . . . . . . . . 1 . . . 7 16 5 Artifact . | . . . . . . . . . . . . . . . . . . . . . . . . . . . . . . . . Weapon 284 | 2 7 23 . 2 23 5 . 1 1 9 . 8 7 4 . 4 12 . 38 1 5 4 4 9 21 2 15 10 28 27 12 Energy Gun 10 | 1 . 4 . . . . . . . . . . 1 1 . . . . . . . 1 . . . . . . . . 2 Energy Cannon 76 | . 1 3 . . 2 1 . . . 5 . 3 . 1 . 2 6 . 18 1 2 1 2 3 7 2 6 5 5 . . Ballistic Gun 16 | 1 1 3 . 1 4 . . . . . . . 1 . . . . . 1 . . . . 1 . . . . . 3 . Ballistic Cannon 33 | . . 3 . . 7 . . . . . . . . . . . . . . . . . . . 3 . . . 9 8 3 Launcher 65 | . 2 5 . . 1 . . 1 . 2 . 5 2 2 . 2 6 . 18 . 3 1 2 2 6 . 1 . 3 1 . Special Weapon 7 | . 3 3 . . . . . . . . . . . . . . . . . . . . . . . . . . . 1 . Impact Weapon 2 | . . . . . . . . . . . . . . . . . . . . . . . . . . . 1 . . 1 . Slashing Weapon 55 | . . 2 . . 8 3 . . 1 1 . . . . . . . . . . . . . 2 5 . 7 5 9 6 6 Piercing Weapon 14 | . . . . . . . . . . 1 . . 1 . . . . . 1 . . 1 . . . . . . 2 7 1 Special Melee Weapon 6 | . . . . 1 1 1 . . . . . . 2 . . . . . . . . . . 1 . . . . . . . Unidentified Prototypes 49 | . . 1 . . . 1 1 1 . . . . . 5 . . . . . . . 7 . 2 7 . 2 . 3 11 8 Parts Lost 31 | . . . . . 24 . . . . . . . . . . . . . 2 . . . . . . . . . 1 . 4 Power 4 | . . . . . 3 . . . . . . . . . . . . . 1 . . . . . . . . . . . . Propulsion 13 | . . . . . 8 . . . . . . . . . . . . . 1 . . . . . . . . . 1 . 3 Utility 9 | . . . . . 9 . . . . . . . . . . . . . . . . . . . . . . . . . . Weapon 5 | . . . . . 4 . . . . . . . . . . . . . . . . . . . . . . . . . 1 Highest Loss Streak 15 | . . . . . 15 . . . . . . . . . . . . . 1 . . . . . . . . . 1 . 1 To Critical Strikes 2 | . . . . . . . . . . . . . . . . . . . . . . . . . . . . . 1 . 1 Average Slot Usage (%) 86 | . 97 95 85 84 84 71 71 78 83 81 85 84 80 80 80 85 84 86 85 86 86 84 86 86 86 87 83 83 82 87 84 Engine 6 | . 14 14 14 14 10 10 11 11 11 5 5 4 5 5 5 5 4 4 2 . . . . . . . . . . . . Reactor 3 | . . . . . . . . . . 4 5 5 5 5 5 5 4 4 5 9 9 7 9 7 8 8 8 8 7 7 4 Treads 5 | . 27 21 . . 18 . . . . . . . . . . . . . . . . . . . . . . . . . . Wheel 5 | . . 6 28 28 7 . . . . . . . . . . . . . . . . . . . . . . . . . . Flight 10 | . . . . . 2 11 11 11 11 14 15 15 15 15 15 15 13 13 12 13 13 12 13 12 12 15 16 16 16 23 23 Device 13 | . 7 9 . . 9 18 15 16 16 18 15 13 10 10 10 15 13 9 12 13 13 12 13 19 20 20 19 19 24 26 23 Storage 7 | . 14 14 14 13 5 5 5 5 5 5 5 5 5 5 5 5 4 4 4 4 4 4 4 4 4 4 4 4 2 . 6 Processor 7 | . . . . . 6 13 16 16 16 15 15 15 15 15 15 15 16 22 16 13 13 13 13 12 11 8 8 8 7 11 9 Hackware 5 | . . . . . . . . 6 11 10 10 11 10 10 10 10 12 13 15 18 18 18 18 16 16 16 16 16 8 . . Protection 3 | . 4 . . . 10 . . . . . 5 5 5 5 5 5 4 4 4 4 4 4 4 4 4 4 4 4 4 6 8 Energy Gun 2 | . . 10 14 . . . . . . . . . . . . . . . . . . . . . . . . . . . . Energy Cannon 1 | . 13 2 . . . . . . . . . . . . . . . . . . . . . 2 2 3 . . . . . Ballistic Gun 1 | . 11 2 . . 5 . . . . . . . . . . . . . . . . . . . . . . . . . . Launcher 2 | . . 4 . . . . . 2 5 2 5 4 4 4 5 4 3 4 3 3 3 4 3 1 1 4 . . . . . Slashing Weapon 4 | . . . 14 14 3 4 5 5 5 3 . . . . . . . . . . . . . 2 3 4 6 7 5 6 7 Piercing Weapon 1 | . . . . . . . . . . 1 5 5 4 5 5 5 4 4 4 4 4 3 4 1 . . . . . 2 . Special Melee Weapon 1 | . . . . 13 . 4 5 2 . . . . . . . . . . . . . . . . . . . . . . . Peak Build Rating 258 | 6 8 19 22 28 83 89 94 109 112 134 134 137 137 141 137 136 152 155 174 174 174 179 178 193 208 211 231 240 251 250 258 Average Rating 117 | 5 7 12 20 21 56 83 87 101 109 125 134 134 136 135 134 134 147 154 160 172 171 173 174 190 196 208 226 229 237 229 252 On Entrance 132 | . 6 8 19 22 28 83 85 89 108 112 134 134 136 137 136 136 133 152 155 171 173 174 178 178 192 197 208 230 237 228 245 Naked Turns . | . . . . . . . . . . . . . . . . . . . . . . . . . . . . . . . . Heaviest Build 255 | 12 32 213 212 213 255 30 29 30 31 38 38 38 46 46 46 38 36 36 56 56 57 55 57 58 58 71 70 88 95 97 91 Greatest Support 108 | 40 40 40 24 24 108 30 30 30 31 38 38 40 36 36 36 42 42 36 62 56 56 58 58 58 59 76 76 80 94 101 97 Greatest Overweight (x) 21 | . . 21 10 8 10 . . . . . . 1 1 1 15 1 1 . 1 . 1 2 1 . 1 2 . 1 1 7 4 Average Overweight (x) . | . . 2 9 7 1 . . . . . . . . . 7 . . . . . . . . . . . . . . . . Largest Inventory Capacity 35 | 8 15 35 35 35 35 10 10 10 10 10 10 10 10 10 10 10 10 10 10 10 10 10 10 10 10 15 25 22 17 17 7 Average Capacity 16 | 7 13 20 35 34 28 10 10 10 10 10 10 10 10 10 10 10 10 10 10 10 10 10 10 10 10 10 15 15 13 7 7 Most Carried 35 | 4 15 34 35 35 35 10 10 10 10 10 10 10 10 10 10 10 10 10 10 10 10 10 10 10 10 12 15 20 17 17 7 Average Carried 15 | 2 10 18 34 32 28 9 9 9 10 9 10 9 9 9 9 9 9 10 9 10 10 10 10 9 9 9 14 15 13 6 6 Final Capacity 35 | 8 15 35 35 35 10 10 10 10 10 10 10 10 10 10 10 10 10 10 10 10 10 10 10 10 10 15 15 17 17 7 7 Final Carried 35 | 4 15 34 35 35 10 10 10 10 10 10 10 10 10 10 10 10 10 10 10 10 10 10 10 10 10 12 15 17 17 7 6 Class Distribution -------------------- 21% | Hauler-Mutant 17% | Mutant 15% | Alien-Sprinter 7% | Wizard-Ninja 7% | Hacker-Scout 6% | Wizard-Scout 6% | Wizard-Sprinter 5% | Hacker-Assassin 3% | Scavenger-Scout Dominant Class ---------------- Mutant | -10/Materials Mutant | -10/Subcaves Hauler-Mutant | -9/Recycling Hauler-Mutant | -9/Scraptown Hauler-Mutant | -6/Factory Scavenger-Scout | -6/Lower Caves Scavenger-Scout | -6/Lower Caves Hacker-Scout | -6/Data Miner Hacker-Scout | -5/Proximity Caves Hacker-Ninja | -5/Factory Hacker-Ninja | -5/Waste Hacker-Scout | -5/Factory Hacker-Assassin | -5/Extension Commander-Assassin | -5/Cetus Hacker-Assassin | -5/Archives Hacker-Scout | -5/Hub_04(d) Hacker-Scout | -4/Factory Wizard-Scout | -4/Waste Wizard-Scout | -4/Factory Wizard-Sprinter | -4/Upper Caves Wizard-Assassin | -4/Upper Caves Wizard-Sprinter | -4/Warlord Wizard-Assassin | -3/Proximity Caves Wizard-Ninja | -3/Research Wizard-Sprinter | -3/Testing Wizard-Sprinter | -2/Research Wizard-Ninja | -2/Quarantine Wizard-Ninja | -2/Section 7 Wizard-Ninja | -1/Access Alien-Sprinter | -1/Command Alien-Sprinter | -1/Access_0 Resources | -11 -10 -10 -9 -9 -6 -6 -6 -6 -5 -5 -5 -5 -5 -5 -5 -5 -4 -4 -4 -4 -4 -4 -3 -3 -3 -2 -2 -2 -1 -1 -1 ----------- Run | Yrd Mat Sub Rec Scr Fac Low Low Dat Pro Fac Was Fac Ext Cet Arc Hub Fac Was Fac Upp Upp War Pro Res Tes Res Qua Sec Acc Com Ac0 Matter Collected 27145 | 284 685 1825 157 270 1440 120 80 50 20 395 . 543 165 205 110 367 351 . 1493 232 365 360 390 285 380 641 184 531 5292 9365 560 Remotely 11873 | . . . . . . . . . . . . . . . . . . . . . . . . . . . . . 3996 7877 . Salvage Created 46735 | 106 886 310 48 . 1999 51 . 29 12 511 . 788 613 26 301 592 1010 . 2074 58 358 135 294 327 578 433 182 559 14284 15630 4541 Parts 1920 | 7 72 25 2 . 86 . . 3 1 28 . 40 25 5 25 34 36 . 103 . 10 7 13 7 27 41 16 36 479 534 258 Haulers Intercepted 30 | . 2 . . . 2 . . . . . . 1 . . . . 3 . 6 . . . . 3 . 1 . . 12 . . Recyclers Shooed 15 | . . . . . 9 . . . . 1 . 1 . . . . . . 1 . . . . 1 . . . . 2 . . Parts Field Recycled . | . . . . . . . . . . . . . . . . . . . . . . . . . . . . . . . . Retrieved Matter . | . . . . . . . . . . . . . . . . . . . . . . . . . . . . . . . . Parts Self-Destructed 67 | . . 24 . . . . 18 . 7 . . . . . . . . . . 1 9 . 8 . . . . . . . . Prevented 47 | . . . . . . . 4 . 17 . . . . . . . . . . 10 2 . 14 . . . . . . . . Kills | -11 -10 -10 -9 -9 -6 -6 -6 -6 -5 -5 -5 -5 -5 -5 -5 -5 -4 -4 -4 -4 -4 -4 -3 -3 -3 -2 -2 -2 -1 -1 -1 ------- Run | Yrd Mat Sub Rec Scr Fac Low Low Dat Pro Fac Was Fac Ext Cet Arc Hub Fac Was Fac Upp Upp War Pro Res Tes Res Qua Sec Acc Com Ac0 Combat Hostiles Destroyed 436 | . 23 6 . . 26 . . . . 4 . 7 1 . . 9 . . 14 1 8 3 5 . 5 1 . 3 137 135 48 Melee 71 | . . . . . . . . . . . . . . . . . . . 1 . . . . . . . . 3 14 11 42 Guns 20 | . 8 1 . . 9 . . . . . . . . . . . . . . . . . . . . . . . . 2 . Cannons 262 | . 12 . . . 11 . . . . . . . . . . . . . . . . . . . . . . . 111 122 6 AOE 80 | . 3 5 . . 5 . . . . 4 . 7 1 . . 7 . . 13 1 8 3 5 . 5 1 . . 12 . . Classes Destroyed 32 | 2 6 3 . . 8 . . . . . . . . . . 2 . . 2 1 . 1 . . . . . . 4 3 . Worker 52 | . . . . . 1 . . . . 3 . 2 . . . 5 2 . 2 . . . . . 2 1 . 1 14 19 . Builder 32 | . 2 . . . 5 . . . . 2 . 3 . . . 1 . . 4 . . . . . . 3 . 2 10 . . Tunneler 7 | 2 1 . . . 1 . . . . . . 1 . . . . . . 1 . . . . . . . . . 1 . . Hauler 30 | . 2 . . . 2 . . . . . . 1 . . . . 3 . 6 . . . . 3 . 1 . . 12 . . Recycler 43 | 1 . . . . 4 . . . . 2 . 3 4 . . . 3 . 5 . . . . . 2 . . 2 15 2 . Carrier 24 | . . . . . . . . . . . . . . . . . . . . . . . . . . . . . 7 17 . Minesweeper 1 | . . . . . . . . . . . . . . . . . . . . 1 . . . . . . . . . . . Mechanic 16 | . . . . . 2 . . . . . . 1 . . . . . . 1 . . . . . . . . . . 12 . Operator 20 | . 1 . . . . . . . . . . 1 1 . 9 1 . . . . . . . . . 1 2 1 . 3 . Drone 2 | . . . . . . . . . . . . . . . . . . . 1 . . . . . . . . . 1 . . Turret 2 | . . 2 . . . . . . . . . . . . . . . . . . . . . . . . . . . . . Watcher 62 | . 3 . . . 1 . . . . 1 . 4 1 2 . 2 8 . 11 . . . . 1 3 6 3 . 12 4 . Swarmer 63 | . 12 3 . . 5 . . . . 2 . 4 . . . 2 . . 7 . 1 . . . 5 1 . . 21 . . Cutter 2 | . . . . . . . . . . . . . . . . . . . 2 . . . . . . . . . . . . Saboteur 14 | . . . . . . . . . . . . . . . . . . . . . . . . . . . . . 7 7 . Grunt 129 | . 11 . . . 7 . . . . 2 . 3 1 . . 3 . . 1 1 3 2 4 . . . . . 60 31 . Brawler 17 | . . . . . 4 . . . . . . . . . . . . . . . 2 . . . . . . . 6 5 . Duelist 11 | . . . . . 2 . . . . . . . . . . . . . . . 1 . . . . . . . 3 5 . Protector 15 | . . . . . . . . . . . . . . . . 2 . . . . . . . . . . . . 3 10 . Sentry 10 | . . . . . 2 . . . . . . . . . . . . . . . 1 . . . . . . . 5 2 . Specialist 1 | . . . . . . . . . . . . . . . . . . . . . . 1 . . . . . . . . . Hunter 30 | . . . . . 2 . . . . . . . . . . 1 . . 2 . . . 1 . . . . . 10 14 . Programmer 40 | . . . . . 3 . . . . . . . . . . . . . 1 . . . . . . . . 3 15 18 . Heavy 1 | . . . . . . . . . . . . . . . . 1 . . . . . . . . . . . . . . . Behemoth 1 | . . . . . 1 . . . . . . . . . . . . . . . . . . . . . . . . . . M Guard 2 | . . . . . . . . . . . . . . . . . . . . . . . . . . . . . . 2 . Enhanced Grunt 32 | . . . . . . . . . . . . . . . . 1 . . . . . . . . . . . . . . 31 Enhanced Sentry 2 | . . . . . . . . . . . . . . . . . . . . . . . . . . . . . . . 2 Enhanced Hunter 8 | . . . . . . . . . . . . . . . . . . . . . . . . . . . . . . . 8 Combat Programmer 2 | . . . . . . . . . . . . . . . . . . . . . . . . . . . . . . 2 . Investigator 1 | . . . . . . . . . . . . . . . . . . . . . . . . . . . . . . 1 . Striker 18 | . . . . . . . . . . . . . . . . . . . . . . . . . . . . . 3 15 . Executioner 25 | . . . . . . . . . . . . . . . . . . . . . . . . . . . . . 3 22 . Protovariant X 1 | . . . . . . . . . . . . . . . . . . . . . . . . . 1 . . . . . . Artisan 1 | . . 1 . . . . . . . . . . . . . . . . . . . . . . . . . . . . . Subdweller 5 | . . 5 . . . . . . . . . . . . . . . . . . . . . . . . . . . . . Decomposer 1 | . . . . . . . . . . . . . . . . . . . . 1 . . . . . . . . . . . Assembled 6 | . . . . . . . . . . . . . . . . . . . . . . . . . . . . . . 6 . Golem 5 | . . . . . . . . . . . . . . . . . . . . . . . . . . . . . . 5 . Wizard 1 | . . . . . . . . . . . . . . . . . . . . . . . 1 . . . . . . . . Best Kill Streak 48 | 2 4 3 . . 8 . . 1 . 7 . 4 2 1 2 6 3 . 5 2 4 3 4 1 3 2 1 2 48 40 4 Combat Bots Only 33 | . 3 3 . . 5 . . . . 4 . 4 1 . . 3 . . 4 1 4 3 4 . 3 1 . 2 20 33 4 Max Kills in Single Turn 5 | 1 2 2 . . 5 . . 1 . 3 . 3 2 1 1 4 2 . 3 1 3 1 3 1 3 1 1 1 5 5 3 Gunslinging 1 | . . . . . 1 . . . . . . . . . . . . . . . . . . . . . . . . . . Exploded 3 | . 2 2 . . 2 . . . . 2 . 3 1 . . 2 . . 3 1 3 1 2 . 3 1 . . 3 . . Melee 2 | . . . . . . . . . . . . . . . . . . . 1 . . . . . . . . 1 2 1 1 Uniques/NPCs Destroyed 10 | . . . . . . . . 1 . . . . . . . . . . . . . . . . . . . . . 2 7 Data Miner (-6/Data Miner) MAIN.C Shell (-1/Command) MAIN.C (-1/Command) A8 (-1/Access_0) A3 (-1/Access_0) A6 (-1/Access_0) A2 (-1/Access_0) A5 (-1/Access_0) Architect (-1/Access_0) A4 (-1/Access_0) Combat | -11 -10 -10 -9 -9 -6 -6 -6 -6 -5 -5 -5 -5 -5 -5 -5 -5 -4 -4 -4 -4 -4 -4 -3 -3 -3 -2 -2 -2 -1 -1 -1 -------- Run | Yrd Mat Sub Rec Scr Fac Low Low Dat Pro Fac Was Fac Ext Cet Arc Hub Fac Was Fac Upp Upp War Pro Res Tes Res Qua Sec Acc Com Ac0 Hostile Shots Fired 2324 | . 69 22 . . 359 . . . . 20 . 5 2 . 1 5 6 . 50 . . 6 . 4 . 26 4 52 201 310 1182 Missed 1520 | . 21 8 . . 107 . . . . 8 . 3 1 . 1 3 3 . 31 . . 3 . 2 . 15 2 26 140 239 907 Damage Taken 15625 | . 504 378 . . 4136 . . . . 191 . 65 20 . . 42 63 . 545 . . 42 . 79 80 365 67 559 1365 1748 5376 Core 1690 | . 75 62 . . 690 . . . . . . 17 20 . . . . . 34 . . 16 . . . 118 . 39 60 98 461 Absorbed by Shields 4854 | . . . . . 223 . . . . . . . . . . . . . . . . 41 . . . . . . . 822 3768 Redirected to Shielding 706 | . 5 . . . . . . . . . . 31 . . . . . . . . . . . 16 27 . . . 119 159 349 Ignored by Resistances 194 | . . . . . . . . . . . . . . . . . . . . . . . . . . . . . . 194 . Regen/Repaired (Parts) 7110 | . 82 . . . . . . . . 5 . 76 . . . . . . 21 . . 29 . 55 43 . 92 192 689 2056 3770 Core Remaining (%) 73 | 100 . . . 45 . . . . 18 . . . . . . 96 . . . . . . 95 . 100 . . 82 . . 55 Volleys Fired 1011 | 8 56 199 . . 95 1 . . . 15 . 17 1 3 2 15 9 . 62 5 11 6 17 13 21 25 5 7 158 252 8 Largest 2 | 2 2 2 . . 2 1 . . . 1 . 1 1 1 1 1 1 . 1 1 1 1 1 1 1 1 1 1 1 2 1 Hottest 180 | 70 100 100 . . 180 90 . . . 90 . 90 80 80 80 90 90 . 90 90 90 80 90 90 90 90 120 120 120 100 100 Shots Fired 1170 | 16 109 207 . . 168 1 . . . 15 . 16 1 3 2 15 9 . 62 5 11 6 17 13 21 27 5 7 158 268 8 Gun 189 | 16 60 18 . . 63 . . . . . . . . . . . . . . . . . . . . . . . . 32 . Cannon 730 | . 46 62 . . 102 1 . . . 8 . 6 . . . 3 6 . 37 1 2 . 7 10 17 16 5 7 150 236 8 Launcher 199 | . 2 76 . . 3 . . . . 7 . 10 1 3 2 12 3 . 25 4 9 6 10 3 4 11 . . 8 . . Special 52 | . 1 51 . . . . . . . . . . . . . . . . . . . . . . . . . . . . . Kinetic 648 | 8 53 45 . . 122 . . . . . . . . . . . . . . . . . . . . . . . 144 268 8 Thermal 323 | 8 54 86 . . 43 1 . . . 8 . 6 . . . 3 6 . 37 1 2 . 7 10 17 16 5 7 6 . . Explosive 199 | . 2 76 . . 3 . . . . 7 . 10 1 3 2 12 3 . 25 4 9 6 10 3 4 11 . . 8 . . Electromagnetic . | . . . . . . . . . . . . . . . . . . . . . . . . . . . . . . . . Robot Hit Streak 59 | 6 15 33 . . 13 . . . . 4 . . . 7 . . . . 11 . . . 12 15 . 20 . . 20 59 9 Robot Miss Streak 12 | 1 6 3 . . 4 . . . . . . . . . . . . . . . . . . . . 1 . . 10 12 9 Penetration Max 3 | . . . . . 1 . . . . . . . . . . . . . . . . . . . . . . . 3 3 1 Secondary Targets 1 | . . . . . 1 . . . . . . . . . . . . . . . . . . . . . . . . . . Max Gunslinging Chain 1 | . . . . . 1 . . . . . . . . . . . . . . . . . . . . . . . . . . Shots Hit Robots 1207 | 12 54 44 1 6 125 2 . 2 1 5 . 16 7 3 20 3 31 . 40 2 . . 1 12 16 21 9 15 205 294 260 Core Hits 1728 | 4 36 27 . . 67 . . 1 . 15 . 33 7 3 11 34 19 . 67 5 19 18 17 5 13 15 4 6 511 653 138 Critical Kills 320 | . . . . . 1 . . . . . . . . . . . . . . . . . . . . . . . 138 175 6 Critical Parts Destroyed 386 | . . . . . 3 . . . . . . . . . . . . . . . . . . . . . . . 166 212 5 Critical Strikes 800 | . . . . . 8 . . . . . . 1 . . 1 . 3 . 2 . . . . . 1 . 1 . 326 422 35 Meltdown 1 | . . . . . 1 . . . . . . . . . . . . . . . . . . . . . . . . . . Destroy 758 | . . . . . 3 . . . . . . . . . . . . . . . . . . . . . . . 324 420 11 Blast 3 | . . . . . 3 . . . . . . . . . . . . . . . . . . . . . . . . . . Sever 30 | . . . . . 1 . . . . . . . . . . . . . . . . . . . 1 . 1 . 2 1 24 Impale 8 | . . . . . . . . . . . . 1 . . 1 . 3 . 2 . . . . . . . . . . 1 . Melee Attacks 1431 | . . 12 1 6 43 5 3 2 8 39 . 56 11 . 25 35 86 . 125 5 4 6 7 32 50 78 53 36 215 188 300 Impact . | . . . . . . . . . . . . . . . . . . . . . . . . . . . . . . . . Slashing 1003 | . . 12 1 . 43 5 3 1 8 31 . . . . . . . . . . . . . 19 50 78 53 36 212 160 291 Piercing 420 | . . . . . . . . . . 8 . 56 10 . 25 35 86 . 125 5 4 6 7 13 . . . . 3 28 9 Sneak Attacks 139 | . . 1 . 5 8 . . 2 . 4 . 9 5 . 11 3 7 . 14 1 . . . 5 8 7 3 6 27 6 7 Combat Hostiles 11 | . . . . . . . . . . . . . . . . . . . . . . . . . . . . . 2 2 7 Follow-up Attacks 73 | . . . . . . . . . . . . . . . . . . . . . . . . . . . 2 2 9 24 36 Damage Inflicted 82951 | 152 1028 1252 70 . 5100 132 . 70 66 1167 . 2400 523 175 1158 1897 1983 . 5442 306 1131 1615 1188 937 2201 2267 1059 1792 12817 12966 22057 Guns 2322 | 152 312 341 . . 986 . . . . . . . . . . . . . . . . . . . . . . . . 531 . Cannons 9192 | . 559 188 . . 2298 . . . . . . . . . . . . . . . . . . . . . . . 2531 3501 115 Explosions 16664 | . 157 623 . . 906 . . . . 889 . 1307 102 175 68 1633 294 . 3136 186 1131 1615 1188 185 579 727 . . 1670 93 . Melee 54703 | . . 76 70 . 864 132 . 70 66 278 . 1093 421 . 1090 264 1689 . 2306 120 . . . 752 1622 1540 1059 1792 8616 8841 21942 Ramming 46 | . . . . . 46 . . . . . . . . . . . . . . . . . . . . . . . . . . Kinetic 9552 | 52 275 364 . . 2225 . . . . . . . . . . . . . . . . . . . . . . . 2489 4032 115 Thermal 2480 | 100 596 189 . . 1553 . . . . . . . . . . . . . . . . . . . . . . . 42 . . Explosive 15268 | . 157 623 . . 412 . . . . 889 . 1307 102 175 68 731 294 . 3136 186 1131 1615 1188 185 579 727 . . 1670 93 . Electromagnetic 902 | . . . . . . . . . . . . . . . . 902 . . . . . . . . . . . . . . . Impact . | . . . . . . . . . . . . . . . . . . . . . . . . . . . . . . . . Slashing 46413 | . . 76 70 . 864 132 . 70 66 278 . . . . . . . . . . . . . 559 1622 1540 1059 1792 8616 8029 21640 Piercing 8290 | . . . . . . . . . . . . 1093 421 . 1090 264 1689 . 2306 120 . . . 193 . . . . . 812 302 Highest Corruption 7 | . . . . . 3 . . . . . 7 7 . . . 2 . . . . . . . . . 2 2 1 . . . Average Corruption 2 | . . . . . 2 . . . . . 7 6 . . . 2 . . . . . . . . . 2 2 1 . . . Corruption Purged 10 | . . . . . 3 . . . . . . 7 . . . . . . . . . . . . . . . . . . . Corruption Blocked 10 | . . . . . . . . . . . . . . . . . . 10 . . . . . . . . . . . . . Effects 67 | . . . . . 26 . . . . . 1 11 . . . 8 . . . . . . . . . 17 2 2 . . . Message Errors 16 | . . . . . 4 . . . . . . 4 . . . 2 . . . . . . . . . 5 1 . . . . Matter Fused 19 | . . . . . 9 . . . . . . 3 . . . 2 . . . . . . . . . 4 . 1 . . . Heat Flow Errors 6 | . . . . . 4 . . . . . . . . . . 1 . . . . . . . . . 1 . . . . . Energy Discharges 8 | . . . . . 2 . . . . . . 2 . . . 2 . . . . . . . . . 2 . . . . . Data Loss (minor) 9 | . . . . . 5 . . . . . 1 . . . . . . . . . . . . . . 2 1 . . . . Data Loss (major) 3 | . . . . . . . . . . . . . . . . 1 . . . . . . . . . 1 . 1 . . . Misfires 2 | . . . . . . . . . . . . . . . . . . . . . . . . . . 2 . . . . . Alerts 2 | . . . . . 1 . . . . . . 1 . . . . . . . . . . . . . . . . . . . Weapon Failures 2 | . . . . . 1 . . . . . . 1 . . . . . . . . . . . . . . . . . . . Overload Shots . | . . . . . . . . . . . . . . . . . . . . . . . . . . . . . . . . Overflow Damage 7900 | . . . 61 . 340 106 . . 55 56 . 340 80 . 298 79 210 . 183 13 . 24 31 189 455 451 356 394 2305 549 1325 Projectiles 54 | . . . . . 54 . . . . . . . . . . . . . . . . . . . . . . . . . . Explosions 442 | . . . . . 103 . . . . 56 . 78 8 . . . . . 43 13 . 24 31 . 15 16 . . 55 . . Melee 7404 | . . . 61 . 183 106 . . 55 . . 262 72 . 298 79 210 . 140 . . . . 189 440 435 356 394 2250 549 1325 Knockbacks 69 | . . . . . 16 . . . . . . . . . . . . . . . . . . . . . . . 15 31 7 Impact . | . . . . . . . . . . . . . . . . . . . . . . . . . . . . . . . . Kinetic 66 | . . . . . 14 . . . . . . . . . . . . . . . . . . . . . . . 15 31 6 Secondary 3 | . . . . . 2 . . . . . . . . . . . . . . . . . . . . . . . . . 1 Self-Inflicted Damage 361 | . 30 162 . . 84 . . . . . . . . . . . . . . . . . . . . 76 . . 9 . . Shots 12 | . 1 7 . . 2 . . . . . . . . . . . . . . . . . . . . 1 . . 1 . . Rammed 2 | . 1 . . . 1 . . . . . . . . . . . . . . . . . . . . . . . . . . Targets Rammed 2 | . 1 . . . 1 . . . . . . . . . . . . . . . . . . . . . . . . . . Kicked . | . . . . . . . . . . . . . . . . . . . . . . . . . . . . . . . . Crushed . | . . . . . . . . . . . . . . . . . . . . . . . . . . . . . . . . Highest Temperature 257 | 27 204 18 . . 238 50 . . . 162 2 114 36 50 36 213 65 . 130 65 120 239 159 138 169 257 68 72 60 95 137 Average Temperature 44 | 13 47 18 . . 64 28 . . . 50 2 45 15 24 24 61 25 . 36 29 51 66 58 45 63 39 31 32 8 8 54 Received Heat Transfer 1098 | . 144 63 . . 468 . . . . 9 . . 9 . . . 9 . 57 . . . . 12 . . . 18 72 28 209 Siege Activations . | . . . . . . . . . . . . . . . . . . . . . . . . . . . . . . . . Robots Corrupted 2 | . . . . . . . . . . . . . . . . 2 . . . . . . . . . . . . . . . Combat Hostiles 2 | . . . . . . . . . . . . . . . . 2 . . . . . . . . . . . . . . . Parts Fried 9 | . . . . . . . . . . . . . . . . 7 . . . . . . 1 . . . . . . . 1 Impact Corruptions . | . . . . . . . . . . . . . . . . . . . . . . . . . . . . . . . . Robots Melted 1 | . . . . . 1 . . . . . . . . . . . . . . . . . . . . . . . . . . Combat Hostiles 1 | . . . . . 1 . . . . . . . . . . . . . . . . . . . . . . . . . . Parts Melted 12 | 1 2 . . . 9 . . . . . . . . . . . . . . . . . . . . . . . . . . Heat Transferred 3925 | 296 1258 384 . . 1950 . . . . . . . . . . . . . . . . . . . . . . . 37 . . Parts Sabotaged . | . . . . . . . . . . . . . . . . . . . . . . . . . . . . . . . . Parts Stolen . | . . . . . . . . . . . . . . . . . . . . . . . . . . . . . . . . Parts Stripped . | . . . . . . . . . . . . . . . . . . . . . . . . . . . . . . . . Power Chain Reactions . | . . . . . . . . . . . . . . . . . . . . . . . . . . . . . . . . Alert | -11 -10 -10 -9 -9 -6 -6 -6 -6 -5 -5 -5 -5 -5 -5 -5 -5 -4 -4 -4 -4 -4 -4 -3 -3 -3 -2 -2 -2 -1 -1 -1 ------- Run | Yrd Mat Sub Rec Scr Fac Low Low Dat Pro Fac Was Fac Ext Cet Arc Hub Fac Was Fac Upp Upp War Pro Res Tes Res Qua Sec Acc Com Ac0 Peak Influence 9534 | 15 298 . 197 . 659 . . . . 706 255 567 366 479 409 1175 796 30 1226 . . . . 800 294 1144 350 278 4924 9534 . Initial 3151 | . 9 . 108 . . . . . . 327 240 178 89 141 111 . 575 15 21 . . . . 234 6 111 275 31 159 3151 . Average 1445 | 6 205 . 50 . 256 . . . . 349 246 278 146 317 101 354 171 18 388 . . . . 217 135 336 98 155 1675 8386 . Maximum Alert Level 5 | . 1 . . . 2 . . . . 3 1 2 1 2 2 4 3 . 4 . . . . 3 1 4 1 1 5 5 . Low Security (%) 41 | 100 51 . 100 . 46 . . . . 24 . 32 68 9 68 47 82 100 30 . . . . 61 88 34 78 77 4 . . Level 1 20 | . 48 . . . 31 . . . . 49 100 41 31 81 26 17 . . 23 . . . . 7 11 19 21 22 20 . . Level 2 12 | . . . . . 21 . . . . 21 . 26 . 8 4 20 13 . 36 . . . . 28 . 41 . . 17 . . Level 3 1 | . . . . . . . . . . 3 . . . . . 9 3 . 3 . . . . 1 . 3 . . 9 . . Level 4 1 | . . . . . . . . . . . . . . . . 4 . . 5 . . . . . . 1 . . 6 . . Level 5 7 | . . . . . . . . . . . . . . . . . . . . . . . . . . . . . 3 36 . High Security 15 | . . . . . . . . . . . . . . . . . . . . . . . . . . . . . 37 63 . Max Security . | . . . . . . . . . . . . . . . . . . . . . . . . . . . . . . . . Sterilizations 1 | . . . . . . . . . . . . . . . . . . . . . . . . . . . . . 1 . . Squads Dispatched 208 | . 4 . . . 22 . . . . 10 . 10 2 . . 7 11 . 26 . . . . 14 3 15 2 2 41 39 . Investigation 58 | . 2 . . . 7 . . . . 4 . 5 . . . 1 5 . 10 . . . . 10 1 6 . . 5 2 . Extermination 25 | . . . . . 5 . . . . 1 . 3 . . . . 2 . 3 . . . . . 2 3 2 1 3 . . Reinforcement 38 | . 2 . . . 1 . . . . 2 . 2 2 . . 5 4 . 7 . . . . 4 . 2 . 1 5 1 . Assault 70 | . . . . . . . . . . . . . . . . . . . 5 . . . . . . 1 . . 28 36 . Garrison 17 | . . . . . 9 . . . . 3 . . . . . 1 . . 1 . . . . . . 3 . . . . . Intercept . | . . . . . . . . . . . . . . . . . . . . . . . . . . . . . . . . Searches Triggered 1 | . . . . . . . . . . 1 . . . . . . . . . . . . . . . . . . . . . Construction Impeded 12 | . . . . . . . . . . 1 . 1 1 . . . 1 . 1 . . . . 1 . 1 . . 5 . . Haulers Reinforced 7 | . . . . . 1 . . . . . . 1 . . . . . . 3 . . . . 2 . . . . . . . Active Scanning Responses . | . . . . . . . . . . . . . . . . . . . . . . . . . . . . . . . . Cargo Convoy Interrupts . | . . . . . . . . . . . . . . . . . . . . . . . . . . . . . . . . Stealth | -11 -10 -10 -9 -9 -6 -6 -6 -6 -5 -5 -5 -5 -5 -5 -5 -5 -4 -4 -4 -4 -4 -4 -3 -3 -3 -2 -2 -2 -1 -1 -1 --------- Run | Yrd Mat Sub Rec Scr Fac Low Low Dat Pro Fac Was Fac Ext Cet Arc Hub Fac Was Fac Upp Upp War Pro Res Tes Res Qua Sec Acc Com Ac0 Distress Signals 71 | . 2 . . . 3 . . . . 6 . 1 2 1 . 3 4 . 2 1 . 2 . 9 1 8 . 3 . 23 . Communications Jammed 56 | . . . . . . . . . . . . . . . . . . . 5 . . . . 8 . 28 . 1 14 . . Distress Signals 50 | . . . . . . . . . . . . . . . . . . . . . . . . 8 . 28 . 1 13 . . Times Spotted 984 | . 35 25 2 . 51 . 5 4 1 33 2 17 16 11 11 20 25 5 63 . 2 22 8 11 8 26 8 19 204 215 135 Peak Tracking Total 28 | . 4 4 1 . 5 . 4 4 1 10 2 3 4 5 1 9 4 5 14 2 4 13 5 5 5 5 2 6 25 19 28 Tactical Retreats 122 | . 1 3 . . 1 . . . . 5 . 1 1 1 . 5 3 . 15 . 1 . . 1 3 4 2 6 26 12 31 Traps | -11 -10 -10 -9 -9 -6 -6 -6 -6 -5 -5 -5 -5 -5 -5 -5 -5 -4 -4 -4 -4 -4 -4 -3 -3 -3 -2 -2 -2 -1 -1 -1 ------- Run | Yrd Mat Sub Rec Scr Fac Low Low Dat Pro Fac Was Fac Ext Cet Arc Hub Fac Was Fac Upp Upp War Pro Res Tes Res Qua Sec Acc Com Ac0 Traps Triggered 16 | . . 1 . . 1 . . . . 3 . 3 3 . . 1 1 . 1 . . . . . 1 . . . . 1 . Indirectly . | . . . . . . . . . . . . . . . . . . . . . . . . . . . . . . . . Trap Hack Attempts 20 | . . . . . . . . . . . . . . . . . . . . . . . . 20 . . . . . . . Triggered . | . . . . . . . . . . . . . . . . . . . . . . . . . . . . . . . . Disarmed 28 | . . . . . . . . . . . . . . . . 15 . . . . . . . 7 . 6 . . . . . Reprogrammed 66 | . . . . . . . . . . . . . . . . . . . 31 . . . . 20 . 5 4 6 . . . Reused 20 | . . . . . . . . . . . . . . . . . . . 11 . . . . 1 . 2 . 6 . . . Traps Extracted . | . . . . . . . . . . . . . . . . . . . . . . . . . . . . . . . . Installed . | . . . . . . . . . . . . . . . . . . . . . . . . . . . . . . . . Triggered 34 | . . . . . . . . . . 1 . . . . . 2 . . 11 . . 9 1 1 . 2 . 6 . 1 . Most Traps Carried 1 | . . . . 1 1 . . . . . . . . . . . . . . . . . . . . . . . . . . Objects Rigged 3 | . . . . . . . . . . . . . . . . 3 . . . . . . . . . . . . . . . Exploded 2 | . . . . . . . . . . . . . . . . 2 . . . . . . . . . . . . . . . Machines | -11 -10 -10 -9 -9 -6 -6 -6 -6 -5 -5 -5 -5 -5 -5 -5 -5 -4 -4 -4 -4 -4 -4 -3 -3 -3 -2 -2 -2 -1 -1 -1 ---------- Run | Yrd Mat Sub Rec Scr Fac Low Low Dat Pro Fac Was Fac Ext Cet Arc Hub Fac Was Fac Upp Upp War Pro Res Tes Res Qua Sec Acc Com Ac0 Machines Disabled 136 | . 2 3 . . 9 . . . . 15 . 1 3 1 3 21 2 . 16 . 1 1 4 6 9 3 6 5 8 6 11 Max in Single Turn 8 | . 1 1 . . 6 . . . . 2 . 1 2 1 1 8 1 . 4 . 1 . 1 . 1 1 1 1 1 2 1 Garrison Access 20 | . . . . . . . . . . 2 . 2 . . . 2 3 . 3 . . . . 3 . 1 1 . 3 . . Phase Generator 1 | . . . . . . . . . . . . . . . . . . . . . . . . . . . . . . 1 . Network Hub 4 | . . . . . . . . . . . . . . . . 4 . . . . . . . . . . . . . . . Machines Repaired . | . . . . . . . . . . . . . . . . . . . . . . . . . . . . . . . . Machines Dismantled . | . . . . . . . . . . . . . . . . . . . . . . . . . . . . . . . . Machines Sabotaged 1 | . . . . . . . . . . . . . . . . 1 . . . . . . . . . . . . . . . Overloaded Fab Kills . | . . . . . . . . . . . . . . . . . . . . . . . . . . . . . . . . Hacking | -11 -10 -10 -9 -9 -6 -6 -6 -6 -5 -5 -5 -5 -5 -5 -5 -5 -4 -4 -4 -4 -4 -4 -3 -3 -3 -2 -2 -2 -1 -1 -1 --------- Run | Yrd Mat Sub Rec Scr Fac Low Low Dat Pro Fac Was Fac Ext Cet Arc Hub Fac Was Fac Upp Upp War Pro Res Tes Res Qua Sec Acc Com Ac0 Machines Accessed 293 | . 9 2 10 4 19 1 1 4 . 16 . 25 12 3 . 12 21 . 32 1 2 4 1 24 12 19 15 15 19 9 1 Terminals 175 | . 6 . 6 . 10 . . . . 9 . 14 12 3 . 10 14 . 16 . 1 . 1 15 8 13 10 13 8 6 . Fabricators 30 | . . . . . 2 . . . . 3 . 5 . . . . 3 . 6 . . . . 4 1 2 . . 4 . . Repair Stations 13 | . 1 . . . . . . . . 1 . 2 . . . . . . 1 . . . . 1 1 . 2 1 1 2 . Recycling Units 23 | . 2 . 3 . 3 . . . . 1 . . . . . . 1 . 5 . . . . 2 . 3 . . 2 1 . Scanalyzers 9 | . . . . . 1 . . . . . . 1 . . . . . . 1 . . . . . 2 . 2 1 1 . . Garrison Access 23 | . . . . . 3 . . . . 2 . 3 . . . 2 3 . 3 . . . . 2 . 1 1 . 3 . . Total Hacks 1435 | . 23 5 27 18 37 1 1 29 . 60 . 109 69 15 . 59 127 . 180 1 9 11 6 125 65 123 69 67 141 41 17 Successful 981 | . 15 5 18 18 18 1 1 29 . 34 . 70 49 9 . 35 81 . 126 1 9 11 6 88 44 92 59 57 77 11 17 Failed 446 | . 8 . 9 . 19 . . . . 26 . 39 19 6 . 24 45 . 53 . . . . 36 20 31 9 9 63 30 . Catastrophic 88 | . 1 . 2 . 7 . . . . 6 . 5 4 . . 2 9 . 14 . . . . 7 4 7 . . 12 8 . Database Lockouts 8 | . . . . . . . . . . . . . 1 . . . 1 . 1 . . . . 1 1 . 1 1 1 . . Manual 848 | . 21 . 20 . 24 . . . . 30 . 52 45 1 . 42 83 . 120 . . 1 . 94 49 85 40 41 79 21 . Terminals 1067 | . 19 . 18 . 22 . . . . 36 . 65 69 15 . 55 104 . 136 . 8 . 6 106 51 112 57 65 94 29 . Fabricators 140 | . . . . . 5 . . . . 17 . 20 . . . . 17 . 30 . . . . 13 6 7 . . 25 . . Repair Stations 46 | . 2 . . . . . . . . 2 . 8 . . . . . . 2 . . . . 2 2 . 7 1 10 10 . Recycling Units 31 | . 2 . 3 . 4 . . . . 1 . . . . . . 1 . 7 . . . . 2 . 3 . . 6 2 . Scanalyzers 24 | . . . . . 2 . . . . . . 9 . . . . . . 1 . . . . . 6 . 3 1 2 . . Garrison Access 37 | . . . . . 4 . . . . 4 . 7 . . . 4 5 . 4 . . . . 2 . 1 2 . 4 . . Terminal Hacks 488 | . 3 5 7 18 2 1 1 29 . 5 . 24 34 9 . 19 33 . 61 1 9 11 6 42 18 50 22 28 29 4 17 Record 72 | . . 4 5 12 . . . 11 . . . . . 8 . . . . . . 8 . 6 1 . . . . . . 17 Part Schematic 54 | . 1 . 1 . . . . 9 . 1 . 3 1 . . . 3 . 5 . . . . 11 3 4 5 5 2 . . Robot Schematic 6 | . . . . . . . . 6 . . . . . . . . . . . . . . . . . . . . . . . Robot Analysis 38 | . 2 . . 5 . . . . . . . 2 5 . . . 2 . 2 . . . . 2 3 4 . 4 7 . . Prototype ID Bank 46 | . . . . . . . . 3 . . . . 15 . . 2 4 . 1 . . 9 . 3 2 2 1 2 2 . . Open Door 16 | . . . . . . 1 1 . . . . 2 2 1 . . . . . 1 1 2 . . . 1 . 4 . . . Open DSF 1 | . . . . . . . . . . . . . . . . . . . . . . . . 1 . . . . . . . Level Access Points 5 | . . . . . . . . . . . . . . . . 1 1 . 1 . . . . . 1 1 . . . . . Branch Access Points 7 | . . . . . 1 . . . . 1 . 1 . . . . 1 . 1 . . . . 1 . 1 . . . . . Emergency Access Points 3 | . . . . . . . . . . 1 . . . . . . . . . . . . . 1 . . . . 1 . . Machine Index 6 | . . . . . . . . . . . . 1 . . . . . . . . . . . . 1 1 1 1 1 . . Terminal Index 8 | . . . . . 1 . . . . 1 . 1 1 . . 1 1 . 1 . . . . . . . . . . 1 . Fabricator Index 4 | . . . . . . . . . . . . 1 . . . . 1 . 1 . . . . . 1 . . . . . . Repair Station Index 2 | . . . . . . . . . . . . . . . . . 1 . 1 . . . . . . . . . . . . Recycling Unit Index 3 | . . . . . . . . . . . . . . . . . 1 . 1 . . . . . . . . . . 1 . Scanalyzer Index 1 | . . . . . . . . . . . . . . . . . . . 1 . . . . . . . . . . . . Garrison Index 2 | . . . . . . . . . . . . 1 . . . . . . 1 . . . . . . . . . . . . Alert Level 20 | . . . . . . . . . . . . . 1 . . . 2 . 6 . . . . 1 1 3 3 1 2 . . Unreport Threat 36 | . . . . . . . . . . 1 . 2 2 . . 4 4 . 2 . . . . 6 . 8 3 . 4 . . Locate Traps 30 | . . . . . . . . . . . . 3 3 . . 3 2 . 6 . . . . 2 1 5 5 . . . . Disarm Traps 6 | . . . . . . . . . . . . . . . . 3 . . . . . . . 2 . 1 . . . . . Reprogram Traps 14 | . . . . . . . . . . . . . . . . . . . 6 . . . . 4 . 2 1 1 . . . Dispatch Records 10 | . . . . . . . . . . . . . . . . 2 1 . 4 . . . . . 1 1 . . 1 . . Maintenance Status 3 | . . . . . . . . . . . . . . . . . . . . . . . . 1 . 1 . 1 . . . Security Status 1 | . . . . . . . . . . . . . . . . . . . . . . . . . . . . . . 1 . Surveillance Status 2 | . . . . . . . . . . . . . . . . . . . 1 . . . . . . . . 1 . . . Patrol Status 5 | . . . . . . . . . . . . . . . . 1 1 . . . . . . 1 . 1 . 1 . . . Transport Status 1 | . . . . . . . . . . . . . . . . . . . . . . . . . . . . 1 . . . Assault Status 1 | . . . . . . . . . . . . . . . . . . . 1 . . . . . . . . . . . . Recall Investigation 10 | . . . . . . . . . . . . 2 . . . . 1 . 4 . . . . 2 1 . . . . . . Recall Extermination 11 | . . . . . . . . . . . . 1 . . . . 1 . 3 . . . . . 2 2 1 . 1 . . Recall Reinforcements 12 | . . . . . . . . . . . . 2 . . . 1 2 . 3 . . . . 1 . 2 . 1 . . . Recall Assault 6 | . . . . . . . . . . . . . . . . . . . 2 . . . . . . 1 . . 3 . . Hauler Manifests 20 | . . . . . . . . . . . . 2 3 . . 1 3 . 3 . . . . 1 1 1 2 1 2 . . Registered Components 2 | . . . . . . . . . . . . . . . . . . . . . . . . . . 1 . 1 . . . Registered Prototypes 3 | . . . . . . . . . . . . . . . . . . . 1 . . . . . . 1 . 1 . . . Zone Layout 17 | . . . . . . . . . . . . . 1 . . . 1 . 3 . . . . 1 . 6 . 2 3 . . Derelict Proto ID Bank 2 | . . 1 . 1 . . . . . . . . . . . . . . . . . . . . . . . . . . . Disengage Seal 1 | . . . . . . . . . . . . . . . . . . . . . . . . . . . . . . 1 . Release Object 1 | . . . 1 . . . . . . . . . . . . . . . . . . . . . . . . . . . . Fabricator Hacks 81 | . . . . . 3 . . . . 10 . 12 . . . . 9 . 20 . . . . 8 5 5 . . 9 . . Network Status 11 | . . . . . 2 . . . . 1 . 1 . . . . 2 . 1 . . . . 2 1 . . . 1 . . Load Schematic 41 | . . . . . 1 . . . . 6 . 6 . . . . 4 . 11 . . . . 4 2 3 . . 4 . . Build 29 | . . . . . . . . . . 3 . 5 . . . . 3 . 8 . . . . 2 2 2 . . 4 . . Repair Station Hacks 35 | . 2 . . . . . . . . 2 . 8 . . . . . . 2 . . . . 2 2 . 6 1 8 2 . Scan Component 19 | . 1 . . . . . . . . 1 . 4 . . . . . . 1 . . . . 1 1 . 4 1 4 1 . Repair 16 | . 1 . . . . . . . . 1 . 4 . . . . . . 1 . . . . 1 1 . 2 . 4 1 . Recycling Unit Hacks 3 | . . . . . . . . . . . . . . . . . . . 1 . . . . . . . . . 2 . . Report Inventory 2 | . . . . . . . . . . . . . . . . . . . 1 . . . . . . . . . 1 . . Retrieve Components 1 | . . . . . . . . . . . . . . . . . . . . . . . . . . . . . 1 . . Scanalyzer 16 | . . . . . . . . . . . . 7 . . . . . . 1 . . . . . 4 . 2 . 2 . . Insert Component 8 | . . . . . . . . . . . . 3 . . . . . . 1 . . . . . 2 . 1 . 1 . . Analyze 8 | . . . . . . . . . . . . 4 . . . . . . . . . . . . 2 . 1 . 1 . . Garrison Access Hacks 19 | . . . . . . . . . . 2 . 2 . . . 2 3 . 3 . . . . 2 . 1 1 . 3 . . Seal Access 19 | . . . . . . . . . . 2 . 2 . . . 2 3 . 3 . . . . 2 . 1 1 . 3 . . Unauthorized Hacks 339 | . 10 . 11 . 13 . . . . 15 . 17 15 . . 14 36 . 38 . . . . 34 15 36 28 28 24 5 . Terminals 273 | . 8 . 8 . 8 . . . . 10 . 12 15 . . 14 30 . 24 . . . . 28 13 31 27 27 14 4 . Track 35 | . . . . . . . . . . 1 . . . . . . 4 . 3 . . . . 3 1 9 4 8 2 . . Assimilate 26 | . . . . . . . . . . 1 . 2 . . . 3 5 . 1 . . . . 3 . 4 3 3 1 . . Botnet 94 | . 3 . 3 . 2 . . . . 3 . 4 5 . . 7 8 . 13 . . . . 8 7 9 8 5 6 3 . Detonate 2 | . . . . . . . . . . . . . . . . 2 . . . . . . . . . . . . . . . Disrupt 5 | . . . . . . . . . . . . . . . . . 1 . . . . . . . . . . 4 . . . Operators 17 | . . . . . . . . . . . . 1 1 . . . 2 . 2 . . . . 3 . 3 2 1 2 . . Skim 93 | . 5 . 5 . 6 . . . . 5 . 5 9 . . 1 10 . 5 . . . . 11 5 6 10 6 3 1 . Sabotage 1 | . . . . . . . . . . . . . . . . 1 . . . . . . . . . . . . . . . Fabricators 38 | . . . . . 1 . . . . 4 . 5 . . . . 5 . 8 . . . . 4 1 2 . . 8 . . Report 1 | . . . . . . . . . . . . . . . . . . . . . . . . . . . . . 1 . . Prioritize 17 | . . . . . . . . . . 1 . 4 . . . . 2 . 3 . . . . 2 1 1 . . 3 . . Liberate 2 | . . . . . . . . . . . . . . . . . . . . . . . . . . . . . 2 . . Haulers 4 | . . . . . . . . . . . . . . . . . 1 . 1 . . . . . . . . . 2 . . Recompile 14 | . . . . . 1 . . . . 3 . 1 . . . . 2 . 4 . . . . 2 . 1 . . . . . Repair Stations 16 | . . . . . 3 . . . . 1 . . . . . . 1 . 4 . . . . 2 . 3 . . 1 1 . Recycling Units 8 | . 2 . 3 . . . . . . . . . . . . . . . 2 . . . . . . . . . 1 . . Reject 1 | . . . . . . . . . . . . . . . . . . . 1 . . . . . . . . . . . . Mask 2 | . . . . . . . . . . . . . . . . . . . 1 . . . . . . . . . 1 . . Tunnel 5 | . 2 . 3 . . . . . . . . . . . . . . . . . . . . . . . . . . . . Fedlink 5 | . . . . . 1 . . . . . . . . . . . . . 2 . . . . 2 . . . . . . . Scrapoids 11 | . . . . . 2 . . . . 1 . . . . . . 1 . 2 . . . . . . 3 . . 1 1 . Scanalyzers 4 | . . . . . 1 . . . . . . . . . . . . . . . . . . . 1 . 1 1 . . . Researchers 3 | . . . . . . . . . . . . . . . . . . . . . . . . . 1 . 1 1 . . . Extract 1 | . . . . . 1 . . . . . . . . . . . . . . . . . . . . . . . . . . Garrison Access . | . . . . . . . . . . . . . . . . . . . . . . . . . . . . . . . . Data Cores Recovered 3 | . . . . . . . . . . . . . . . . . 1 . . . . . . 1 . . . 1 . . . Used 2 | . . . . . . . . . . . . . . . . . 1 . . . . . . 1 . . . . . . . Hacking Detections 161 | . 7 . 6 . 17 . . . . 11 . 15 7 1 . 9 12 . 12 . . . . 12 9 8 11 3 14 7 . Full Trace Events 20 | . . . . . 2 . . . . . . 4 . . . . 2 . 2 . . . . 2 1 2 . . 4 1 . Feedback Events 1 | . . . . . 1 . . . . . . . . . . . . . . . . . . . . . . . . . . Corruption 1 | . . . . . 1 . . . . . . . . . . . . . . . . . . . . . . . . . . Feedback Blocked . | . . . . . . . . . . . . . . . . . . . . . . . . . . . . . . . . Robot Schematics Acquired 6 | . . . . . . . . 6 . . . . . . . . . . . . . . . . . . . . . . . Robots Built 5 | . . . . . . . . . . . . . . . . . 3 . 2 . . . . . . . . . . . . Authchips . | . . . . . . . . . . . . . . . . . . . . . . . . . . . . . . . . Time 177 | . . . . . . . . . . . . . . . . . 93 . 84 . . . . . . . . . . . . Total Robot Build Rating 33 | . . . . . . . . . . . . . . . . . 21 . 12 . . . . . . . . . . . . Part Schematics Acquired 62 | . 1 . 1 . 1 . . 9 . 1 . 6 1 . . . 3 . 5 . . . . 11 5 4 6 5 3 . . Parts Built 30 | . . . . . . . . . . 3 . 5 . . . . 3 . 7 . . . . 3 2 2 . . 5 . . Authchips 13 | . . . . . . . . . . 3 . 2 . . . . 1 . 5 . . . . . 1 1 . . . . . Time 1582 | . . . . . . . . . . 278 . 339 . . . . 125 . 431 . . . . 68 74 110 . . 157 . . Total Part Build Rating 219 | . . . . . . . . . . 17 . 29 . . . . 23 . 52 . . . . 26 18 18 . . 36 . . Parts Repaired 16 | . 1 . . . . . . . . 1 . 4 . . . . . . 1 . . . . 1 1 . 2 . 4 1 . Time 618 | . 26 . . . . . . . . 50 . 220 . . . . . . 26 . . . . 54 26 . 62 . 128 26 . Parts Recycled . | . . . . . . . . . . . . . . . . . . . . . . . . . . . . . . . . Recycled Matter . | . . . . . . . . . . . . . . . . . . . . . . . . . . . . . . . . Retrieved Matter . | . . . . . . . . . . . . . . . . . . . . . . . . . . . . . . . . Retrieved Components 10 | . . . . . . . . . . . . . . . . . . . . . . . . . . . . . 10 . . Parts Scanalyzed 7 | . . . . . . . . . . . . 3 . . . . . . . . . . . . 2 . 1 . 1 . . Part Schematics Acquired 7 | . . . . . . . . . . . . 3 . . . . . . . . . . . . 2 . 1 . 1 . . Parts Damaged 1 | . . . . . . . . . . . . . . . . . . . . . . . . . 1 . . . . . . Bothacking | -11 -10 -10 -9 -9 -6 -6 -6 -6 -5 -5 -5 -5 -5 -5 -5 -5 -4 -4 -4 -4 -4 -4 -3 -3 -3 -2 -2 -2 -1 -1 -1 ------------ Run | Yrd Mat Sub Rec Scr Fac Low Low Dat Pro Fac Was Fac Ext Cet Arc Hub Fac Was Fac Upp Upp War Pro Res Tes Res Qua Sec Acc Com Ac0 Used RIF Installer . | . . . . . . . . . . . . . . . . . . . . . . . . . . . . . . . . Robots Hacked 7 | . . . . 5 . . . 1 . . . . 1 . . . . . . . . . . . . . . . . . . Non-combat 1 | . . . . 1 . . . . . . . . . . . . . . . . . . . . . . . . . . . Combat 6 | . . . . 4 . . . 1 . . . . 1 . . . . . . . . . . . . . . . . . . Robot Hacks Applied 7 | . . . . 5 . . . 1 . . . . 1 . . . . . . . . . . . . . . . . . . parse_system 7 | . . . . 5 . . . 1 . . . . 1 . . . . . . . . . . . . . . . . . . Relay Couplers Released 2 | . . . . . . . . . . . . . . . . . . . . . . . . 2 . . . . . . . Machine Destruction 2 | . . . . . . . . . . . . . . . . . . . . . . . . 2 . . . . . . . Fabnet Peak Effective % . | . . . . . . . . . . . . . . . . . . . . . . . . . . . . . . . . Robots Rewired 22 | . . . 2 . . . . . . . . . 13 . . . 1 . . . . 5 . . 1 . . . . . . Allies Hacked 1 | . . . . . . . . . . . . . . . . . . . . . . . . . . . . . 1 . . Hacks Repelled . | . . . . . . . . . . . . . . . . . . . . . . . . . . . . . . . . Allies | -11 -10 -10 -9 -9 -6 -6 -6 -6 -5 -5 -5 -5 -5 -5 -5 -5 -4 -4 -4 -4 -4 -4 -3 -3 -3 -2 -2 -2 -1 -1 -1 -------- Run | Yrd Mat Sub Rec Scr Fac Low Low Dat Pro Fac Was Fac Ext Cet Arc Hub Fac Was Fac Upp Upp War Pro Res Tes Res Qua Sec Acc Com Ac0 Total Allies 247 | . . 15 2 . 11 . 5 1 6 16 1 12 15 5 . 1 22 2 24 8 6 5 7 7 1 24 2 1 6 42 . Largest Group 14 | . . 5 7 7 12 . 4 4 5 5 1 4 13 14 9 7 7 3 10 4 4 9 5 4 1 5 2 1 2 13 . Highest-Rated Group 860 | . . 95 128 128 268 . 324 324 397 400 31 324 524 860 475 416 393 137 473 324 324 593 329 319 164 324 71 26 121 602 . Highest-Rated Ally 234 | . . 19 27 27 47 . 81 96 87 87 31 81 159 159 96 96 81 81 81 81 81 81 81 81 164 81 45 26 64 234 . Total Orders 101 | . . . . . 1 . . . . . . 2 32 13 1 . 9 . 2 . . 9 . . 1 25 . 3 3 . . STAY 44 | . . . . . 1 . . . . . . 1 2 1 . . 7 . . . . 7 . . 1 20 . 2 2 . . ROAM 1 | . . . . . . . . . . . . . . . . . . . 1 . . . . . . . . . . . . FOLLOW 16 | . . . . . . . . . . . . 1 2 1 . . 2 . 1 . . 2 . . . 5 . 1 1 . . EXPLORE 13 | . . . . . . . . . . . . . 10 3 . . . . . . . . . . . . . . . . . RETURN 27 | . . . . . . . . . . . . . 18 8 1 . . . . . . . . . . . . . . . . Ally Attacks 1895 | . . 50 16 . 109 . 8 32 32 138 . 126 249 106 31 70 100 9 164 21 21 46 44 79 . 238 . . 10 196 . Total Damage 52499 | . . 869 324 . 2024 . 549 556 611 4321 . 3289 5077 2362 784 2106 2357 130 4258 1237 533 2621 1689 3541 . 7276 . . 266 5719 . Kills 321 | . . 11 6 . 22 . 5 2 7 31 . 25 25 12 4 10 11 . 27 7 3 18 11 19 . 38 . . . 27 . Allies Corrupted 4 | . . . . . . . . . . . . . . . . . 1 . . . . . . . . . . . . 3 . Allies Melted 4 | . . . . . 1 . . . . 1 . . . . . . . . 2 . . . . . . . . . . . . Intel | -11 -10 -10 -9 -9 -6 -6 -6 -6 -5 -5 -5 -5 -5 -5 -5 -5 -4 -4 -4 -4 -4 -4 -3 -3 -3 -2 -2 -2 -1 -1 -1 ------- Run | Yrd Mat Sub Rec Scr Fac Low Low Dat Pro Fac Was Fac Ext Cet Arc Hub Fac Was Fac Upp Upp War Pro Res Tes Res Qua Sec Acc Com Ac0 Robot Analysis Total 38 | . 2 . . 5 . . . . . . . 2 5 . . . 2 . 2 . . . . 2 3 4 . 4 7 . . Derelict Logs Recovered 14 | . . 2 . 5 . 2 1 . 1 . . . . . . . . . . 1 2 . . . . . . . . . . Drone Launches 35 | . . . . . . . . . . . . . 25 9 1 . . . . . . . . . . . . . . . . Drone Recoveries 34 | . . . . . . . . . . . . . 25 8 1 . . . . . . . . . . . . . . . . Exploration | -11 -10 -10 -9 -9 -6 -6 -6 -6 -5 -5 -5 -5 -5 -5 -5 -5 -4 -4 -4 -4 -4 -4 -3 -3 -3 -2 -2 -2 -1 -1 -1 ------------- Run | Yrd Mat Sub Rec Scr Fac Low Low Dat Pro Fac Was Fac Ext Cet Arc Hub Fac Was Fac Upp Upp War Pro Res Tes Res Qua Sec Acc Com Ac0 Turns Passed 58628 | 152 2794 9959 2001 5818 2775 666 1050 512 529 1026 24 1551 1323 475 2374 787 1464 26 3006 721 1146 588 731 968 1085 1367 1014 593 3345 6521 2237 Spaces Moved 71247 | 75 1501 5031 870 2758 1923 1253 1885 300 1043 1839 62 3009 983 268 549 1597 2430 80 6253 1331 1319 1191 843 2598 2751 2770 1800 968 6281 8268 7418 Core 309 | 7 . . . . 31 . . . . . . . . . 247 . . . . . . 1 . . . 9 . . . 11 3 Treads 5764 | 68 1501 3924 . . 271 . . . . . . . . . . . . . . . . . . . . . . . . . . Legs 4 | . . . . . . . . . . . . . . . . . 1 . . . . 1 . . 2 . . . . . . Wheels 5212 | . . 1107 870 2758 477 . . . . . . . . . . . . . . . . . . . . . . . . . . Hover . | . . . . . . . . . . . . . . . . . . . . . . . . . . . . . . . . Flight 59958 | . . . . . 1144 1253 1885 300 1043 1839 62 3009 983 268 302 1597 2429 80 6253 1331 1319 1189 843 2598 2749 2761 1800 968 6281 8257 7415 Fastest Speed 5 | 50 160 160 210 90 37 37 37 37 37 37 37 29 30 30 30 24 24 30 24 30 30 27 27 27 27 23 23 23 13 5 6 Average Speed 58 | 149 160 179 220 206 113 37 37 37 37 37 37 34 83 89 405 30 30 30 30 30 63 28 75 27 27 28 27 29 26 29 19 Slowest Speed 800 | 160 160 560 230 210 320 37 37 37 39 39 37 99 90 90 800 90 190 30 90 30 90 170 87 27 190 150 31 90 91 400 250 Overloaded Moves 1053 | . . . . . . . . . . . . 17 . . . 49 1 . 107 . . . . . . 45 5 37 11 70 711 Propulsion Burnouts . | . . . . . . . . . . . . . . . . . . . . . . . . . . . . . . . . Robots Hopped 295 | . . . . . 10 . . . . 11 2 16 1 . . 34 16 . 35 . . . . 24 45 31 . 2 34 10 24 Cave-ins Triggered . | . . . . . . . . . . . . . . . . . . . . . . . . . . . . . . . . Teleports 4 | . . . . . . . . . . . . . . . . . . . . . . . . . . . . 1 . 1 2 Exploration Rate (%) 78 | 6 98 98 99 96 40 94 99 83 84 34 67 58 88 86 98 81 56 73 82 95 97 95 96 70 92 48 94 57 69 92 98 Regions Visited 31 Branch Regions 20 Pre-discovered Areas 26 | . 2 2 5 1 2 . . 1 . 3 . 2 2 . . . 1 . 1 1 1 . 1 . . . 1 . . . . Known Exits Taken 23 | . 1 1 1 . 1 1 1 1 1 . . 1 1 1 1 1 . . 1 1 1 1 1 1 1 1 1 1 . . . Unknown Exits Taken 4 | 1 . . . 1 . . . . . . . . . . . . . . . . . . . . . . . . 1 1 . Scrap Searched 30 | . . 6 . 7 . 4 2 . 2 . . . . . . . . . . 3 3 . 3 . . . . . . . . Spaces Dug 1196 | . 1 480 . . 26 4 3 . 7 42 . 40 2 . . 28 54 . 109 4 5 . 13 32 32 82 35 16 106 75 . Terrain Destroyed 3013 | . 8 601 . . 111 4 3 . 7 68 . 95 15 37 17 596 68 . 306 44 41 7 68 33 62 202 35 16 296 269 4 Melee 539 | . . 9 . . 26 3 3 . 7 35 . 34 2 . . 25 48 . 73 3 4 . 7 23 22 47 30 11 91 36 . Projectile 174 | . 1 31 . . 17 1 . . . 8 . 6 . . . 3 6 . 37 1 1 . 6 10 15 15 5 5 5 1 . AOE 1997 | . 7 561 . . 68 . . . . 25 . 55 13 37 17 568 14 . 196 40 36 7 55 . 25 140 . . 62 71 . Terrain Rammed . | . . . . . . . . . . . . . . . . . . . . . . . . . . . . . . . . Walls Destroyed . | . . . . . . . . . . . . . . . . . . . . . . . . . . . . . . . . Machines Disabled . | . . . . . . . . . . . . . . . . . . . . . . . . . . . . . . . . Actions | -11 -10 -10 -9 -9 -6 -6 -6 -6 -5 -5 -5 -5 -5 -5 -5 -5 -4 -4 -4 -4 -4 -4 -3 -3 -3 -2 -2 -2 -1 -1 -1 --------- Run | Yrd Mat Sub Rec Scr Fac Low Low Dat Pro Fac Was Fac Ext Cet Arc Hub Fac Was Fac Upp Upp War Pro Res Tes Res Qua Sec Acc Com Ac0 Total 84565 | 96 1777 5609 959 2922 2249 1448 2233 700 1166 2097 60 3403 1469 500 652 1786 2999 80 7018 1634 1603 1416 895 2778 2931 3168 2215 1213 7460 12024 8005 Wait 8956 | 4 186 204 28 12 41 163 324 386 110 163 1 294 341 204 69 161 454 . 477 286 256 158 15 87 91 288 284 141 544 2944 240 Move 70654 | 74 1500 5030 869 2757 1902 1252 1884 299 1042 1817 58 2977 980 267 548 1532 2400 79 6184 1330 1318 1190 842 2551 2668 2709 1799 963 6213 8248 7372 Hop 268 | . . . . . 10 . . . . 11 1 15 1 . . 30 14 . 33 . . . . 22 37 29 . 2 33 9 21 Pick Up 427 | 4 11 70 11 67 42 3 4 3 1 10 . 10 1 1 1 1 5 . 20 . . . . 12 8 4 7 9 28 75 19 Fast Attach 408 | 6 4 11 . 5 23 6 4 4 1 3 . 4 9 9 . . 4 . 10 . . 16 . 9 16 1 23 13 94 106 27 Attach 170 | . . 7 . 1 21 4 . 1 . 14 . 7 2 2 2 . 1 . 9 . . . . 3 4 3 7 4 36 28 14 Detach 146 | . 2 7 . 1 4 2 . . . 10 . 3 4 2 . . . . 6 . . . . 2 3 2 8 4 42 34 10 Swap 420 | . 12 32 3 1 37 2 4 . 1 7 . 14 3 2 4 11 17 1 73 8 14 5 14 9 11 26 12 28 42 17 10 Drop 628 | . 5 37 13 71 24 10 9 5 3 8 . 6 10 10 1 1 7 . 19 . . 16 . 18 21 3 22 11 96 170 32 Fire 1011 | 8 56 199 . . 95 1 . . . 15 . 17 1 3 2 15 9 . 62 5 11 6 17 13 21 25 5 7 158 252 8 Melee 1277 | . . 12 1 6 43 5 3 2 8 39 . 56 11 . 25 35 86 . 125 5 4 6 7 32 50 78 48 31 174 133 252 Ram . | . . . . . . . . . . . . . . . . . . . . . . . . . . . . . . . . Kick . | . . . . . . . . . . . . . . . . . . . . . . . . . . . . . . . . Crush 2 | . 1 . . . 1 . . . . . . . . . . . . . . . . . . . . . . . . . . Escape Stasis 68 | . . . . . 6 . . . . . . . 54 . . . . . . . . . . . . . . . . 8 . Rewire 109 | . . . 34 1 . . . . . . . . 52 . . . 2 . . . . 19 . . 1 . . . . . . Trap 20 | . . . . . . . . . . . . . . . . . . . . . . . . 20 . . . . . . . Miscellaneous 1 | . . . . . . . 1 . . . . . . . . . . . . . . . . . . . . . . . . Route ------- -11/Scrapyard -10/Materials (discovered 6 exits: [*Mat x3] / *Min x2 / *Sub) -10/Subcaves (discovered 3 exits: *Mat x2 / *Rec) -9/Recycling (discovered 2 exits: *Fac / *Scr) -9/Scraptown (discovered 2 exits: *Fac x2) -6/Factory (discovered 4 exits: *Fac x2 / *Low x2) -6/Lower Caves -6/Lower Caves (discovered 2 exits: *Fac / *Dat) -6/Data Miner -5/Proximity Caves -5/Factory (discovered 8 exits: *Fac x4 / *Upp x2 / *Ext x2) -5/Waste -5/Factory (discovered 8 exits: *Fac x4 / *Upp x2 / *Ext x2) -5/Extension (discovered 3 exits: *Fac x2 / *Cet) -5/Cetus (discovered 3 exits: *Fac x2 / *Arc) -5/Archives (discovered 3 exits: *Fac / *Hub x2) -5/Hub_04(d) (discovered 4 exits: *Fac x4) -4/Factory (discovered 6 exits: Res x4 / *Upp x2) -4/Waste -4/Factory (discovered 6 exits: *Res x4 / *Upp x2) -4/Upper Caves (discovered 2 exits: *Upp / *War) -4/Upper Caves (discovered 2 exits: *Res / *War) -4/Warlord -3/Proximity Caves -3/Research (discovered 5 exits: Res x2 / *Arm / *Tes x2) -3/Testing -2/Research (discovered 5 exits: *Acc x3 / *Qua x2) -2/Quarantine (discovered 2 exits: Acc / *Sec) -2/Section 7 -1/Access (discovered 2 exits: Sur / *Com) -1/Command (discovered 3 exits: *Sur x2 / *Ac0) -1/Access_0 To Fleet Rendezvous History --------- Turn | Location | Event 3 | -11/Scrapyard | Discovered new exit (range 15) 153 | -11/Scrapyard | Entered Materials 316 | -10/Materials | Build established: Mutant 421 | -10/Materials | Discovered new exit (range 16) 466 | -10/Materials | Discovered new exit (range 15) 856 | -10/Materials | Discovered new exit (range 5) 1072 | -10/Materials | Learned location of 1 exit from Recycling 1112 | -10/Materials | Discovered new exit (range 4) 1132 | -10/Materials | Learned Storage machine intel 1149 | -10/Materials | Identified exit to Subcaves 1149 | -10/Materials | Identified exit to Mines 1154 | -10/Materials | Learned location of 1 exit from Recycling 1155 | -10/Materials | Learned location of 2 exits from Subcaves 1159 | -10/Materials | Learned location of 3 exits from Materials 1174 | -10/Materials | Learned location of 1 exit from Storage 1199 | -10/Materials | Learned Storage trap positions 1261 | -10/Materials | Repaired Lgt. Treads 2947 | -10/Materials | Entered Subcaves 2948 | -10/Subcaves | Identified exit to Materials 2948 | -10/Subcaves | Identified exit to Recycling 2992 | -10/Subcaves | Shifting Twisted Machinery released Sub. Machine Gun 2995 | -10/Subcaves | Shifting Twisted Machinery released Sub. Monowheel 3002 | -10/Subcaves | Discovered exit to Materials (range 7) 3406 | -10/Subcaves | Visited triangular shrine 3417 | -10/Subcaves | Found Prototype Device 3417 | -10/Subcaves | Identified V3-11A's Pendant 3422 | -10/Subcaves | Befriended Subdweller 3612 | -10/Subcaves | Shifting Twisted Machinery released Sub. Power Source 3615 | -10/Subcaves | Shifting Twisted Machinery released Battle Rifle 3744 | -10/Subcaves | A swath of the cavern ceiling suddenly collapsed 4000 | -10/Subcaves | Befriended Subdweller 4085 | -10/Subcaves | Befriended Subdweller 4090 | -10/Subcaves | Befriended Subdweller 4333 | -10/Subcaves | Learned location of Storage (-9) 4545 | -10/Subcaves | Shifting Twisted Machinery released Sub. Laser 4553 | -10/Subcaves | Shifting Twisted Machinery released Sub. Laser 4666 | -10/Subcaves | Visited 4L-MR0's lab 4792 | -10/Subcaves | A swath of the cavern ceiling suddenly collapsed 5625 | -10/Subcaves | Befriended Subdweller 5891 | -10/Subcaves | Learned location of Zion (-7) 6176 | -10/Subcaves | Visited Clippyterm 6181 | -10/Subcaves | Learned Research machine intel 6181 | -10/Subcaves | Learned Factory garrison access intel 6490 | -10/Subcaves | Befriended Subdweller 7393 | -10/Subcaves | Build established: Hauler-Mutant 9063 | -10/Subcaves | Lost 4 allies 9231 | -10/Subcaves | Build established: Mutant 9879 | -10/Subcaves | Ambushed by Subdweller buried in earth 9889 | -10/Subcaves | Befriended Subdweller 10009 | -10/Subcaves | Befriended Subdweller 10069 | -10/Subcaves | Befriended Subdweller 10165 | -10/Subcaves | Ambushed by Subdweller buried in earth 10167 | -10/Subcaves | Ambushed by Subdweller buried in earth 10169 | -10/Subcaves | Befriended Subdweller 10485 | -10/Subcaves | Ambushed by Subdweller buried in earth 10647 | -10/Subcaves | Ambushed by Subdweller buried in earth 10647 | -10/Subcaves | Ambushed by Subdweller buried in earth 10649 | -10/Subcaves | Befriended Subdweller 10649 | -10/Subcaves | Befriended Subdweller 10826 | -10/Subcaves | Ambushed by Subdweller buried in earth 10889 | -10/Subcaves | Ambushed by Subdweller buried in earth 10894 | -10/Subcaves | Befriended Subdweller 11044 | -10/Subcaves | Ambushed by Subdweller buried in earth 11047 | -10/Subcaves | Core integrity fell below 50% 11049 | -10/Subcaves | Befriended Subdweller 11050 | -10/Subcaves | Ambushed by Subdweller buried in earth 11054 | -10/Subcaves | Befriended Subdweller 12049 | -10/Subcaves | Build established: Hauler-Mutant 12601 | -10/Subcaves | Found Flightbrick 12906 | -10/Subcaves | Entered Recycling 12906 | -9/Recycling | Accompanied by 5 allies 12907 | -9/Recycling | Identified exit to Factory 12907 | -9/Recycling | Identified exit to Scraptown 14154 | -9/Recycling | Learned Materials stockpile data 14202 | -9/Recycling | Learned Materials trap positions 14270 | -9/Recycling | Learned 4 Materials zone layouts 14288 | -9/Recycling | Learned location of 2 exits from Materials 14834 | -9/Recycling | Scanned before Scraplab entrance 14865 | -9/Recycling | Entered Scraplab 14907 | -9/Recycling | Entered Scraptown 14907 | -9/Scraptown | Accompanied by 7 allies 15066 | -9/Scraptown | Visited Shadow of the Wyrm 15179 | -9/Scraptown | Visited UFD Registry 15210 | -9/Scraptown | Visited Cave Peace 15284 | -9/Scraptown | Visited SPCMW 15334 | -9/Scraptown | Visited Awakened 15388 | -9/Scraptown | Visited Comm Corps 15498 | -9/Scraptown | Scanned Subdweller tech in exchange for log data 15503 | -9/Scraptown | Learned Research terminal intel 15505 | -9/Scraptown | Learned Research trap positions 15507 | -9/Scraptown | Learned location of Armory (-3) 15509 | -9/Scraptown | Learned Research non-interactive machine intel 15511 | -9/Scraptown | Learned 8 Factory zone layouts 15545 | -9/Scraptown | Discovered new exit (range 5) 16509 | -9/Scraptown | Visited Fellowship of the Rings 16561 | -9/Scraptown | Visited The Evicted 16668 | -9/Scraptown | Delivered V3-11A's Pendant to T0-NE2 in exchange for information 16813 | -9/Scraptown | Registered with UFD as "Fluxchaser" 16987 | -9/Scraptown | Visited Scrapoid Research Area 17047 | -9/Scraptown | Visited Scrap Suit Storage 17142 | -9/Scraptown | Delivered Scrap Shield to a Scientist 17448 | -9/Scraptown | Visited Chapter 10 17604 | -9/Scraptown | Visited Derelict Rescue Squad 17660 | -9/Scraptown | Visited Botcube Research 17713 | -9/Scraptown | Visited Science Guys 17963 | -9/Scraptown | Visited DA-N13 Charitable Foundation 17986 | -9/Scraptown | Found DCF Scrap (30 items) 18040 | -9/Scraptown | Visited Analyses Database 18099 | -9/Scraptown | Visited Infowarlord's Domain 18526 | -9/Scraptown | Found Exp. Sensor Array 18626 | -9/Scraptown | Found Botcube 18671 | -9/Scraptown | Found DRS Beacon 18852 | -9/Scraptown | Found Scrap Suit 20415 | -9/Scraptown | Discovered new exit (range 3) 20549 | -9/Scraptown | Found Scrap Suit 20725 | -9/Scraptown | Entered Factory 20725 | -6/Factory | Accompanied by 7 allies 20725 | -6/Factory | Evolved 8 slots: Power x1, Propulsion x3, Utility x4 20727 | -6/Factory | Loaded intel: 4 garrison access locations 20767 | -6/Factory | Scrapoid reinforcements arrived 20855 | -6/Factory | Discovered new exit (range 13) 20864 | -6/Factory | Identified exit to Lower Caves 20977 | -6/Factory | Garrison activated, responded to threat 21004 | -6/Factory | Lost 3 allies 21154 | -6/Factory | Lost 3 allies 21711 | -6/Factory | Lost 3 parts (2n1u) 21953 | -6/Factory | Scrapoid reinforcements arrived 22050 | -6/Factory | Lost 5 allies 22714 | -6/Factory | Spotted B-75 Beast 22731 | -6/Factory | Destroyed B-75 Beast 22734 | -6/Factory | Garrison activated, responded to threat 22785 | -6/Factory | Lost 4 parts (2p1n1u) 22787 | -6/Factory | Learned location of 2 exits from Archives 22922 | -6/Factory | Botcube activated 22936 | -6/Factory | Botcube completed mutation into treaded form, armed with 1 gun, 1 cannon. 22946 | -6/Factory | Core integrity fell below 50% 22967 | -6/Factory | Core integrity fell below 20% 22972 | -6/Factory | Attached Flightbrick, gained temporary slots: Utility x3 22976 | -6/Factory | Lost 15 parts (1p5n5u4w) 23282 | -6/Factory | Discovered new exit (range 22) 23315 | -6/Factory | Learned Extension emergency access door positions 23400 | -6/Factory | Learned 4 Lower Caves zone layouts 23437 | -6/Factory | Build established: Scavenger-Scout 23455 | -6/Factory | Identified exit to Factory 23500 | -6/Factory | Entered Lower Caves 23502 | -6/Lower Caves | UFD Scientist delivered a prototype 23505 | -6/Lower Caves | Found Prototype Protection 23505 | -6/Lower Caves | Identified Enh. Scrap Shield 23554 | -6/Lower Caves | Encountered a Warlord checkpoint 23564 | -6/Lower Caves | Identified exit to Lower Caves 23565 | -6/Lower Caves | Learned Factory garrison access intel 23714 | -6/Lower Caves | Spotted B-75 Beast 24166 | -6/Lower Caves | Entered another Lower Caves area 24217 | -6/Lower Caves | Encountered a Warlord checkpoint 24230 | -6/Lower Caves | Spotted B-75 Beast 24304 | -6/Lower Caves | Prototype Device suddenly appears! 24308 | -6/Lower Caves | Activated DRS Beacon 24314 | -6/Lower Caves | Found Prototype Device 24330 | -6/Lower Caves | Identified Amulet of Y3-NDR 24341 | -6/Lower Caves | Joined by bewildered Wizard 24341 | -6/Lower Caves | Joined by bewildered Wizard 24369 | -6/Lower Caves | Joined by bewildered Wizard 24381 | -6/Lower Caves | Joined by bewildered Wizard 24439 | -6/Lower Caves | Discovered exit to Factory (range 17) 24711 | -6/Lower Caves | Identified exit to Data Miner 24719 | -6/Lower Caves | Joined by bewildered Wizard 25216 | -6/Lower Caves | Entered Data Miner 25216 | -6/Data Miner | Accompanied by 4 allies 25216 | -6/Data Miner | Discovered new exit (range 6) 25221 | -6/Data Miner | Met Data Miner 25232 | -6/Data Miner | Learned location of Section 7 (-2) 25232 | -6/Data Miner | Acquired the access code to Warlord's prototype stash 25347 | -6/Data Miner | Received God Mode back door access code from Data Miner 25399 | -6/Data Miner | Destroyed Data Miner 25401 | -6/Data Miner | Found Quantum Router 25403 | -6/Data Miner | Found System Mapper 25405 | -6/Data Miner | Data Conduit disabled 25416 | -6/Data Miner | Identified exit to Proximity Caves 25458 | -6/Data Miner | Lost 3 allies 25694 | -6/Data Miner | Build established: Hacker-Scout 25728 | -6/Data Miner | Entered Proximity Caves 25728 | -5/Proximity Caves | Accompanied by 2 allies 25774 | -5/Proximity Caves | Joined by bewildered Wizard 25774 | -5/Proximity Caves | Joined by bewildered Wizard 25821 | -5/Proximity Caves | Joined by bewildered Wizard 25851 | -5/Proximity Caves | Spotter reported a threat 25931 | -5/Proximity Caves | Spotter reported a threat 26030 | -5/Proximity Caves | Spotted B-75 Beast 26041 | -5/Proximity Caves | Joined by bewildered Wizard 26041 | -5/Proximity Caves | Joined by bewildered Wizard 26046 | -5/Proximity Caves | Discovered exit to Factory (range 15) 26085 | -5/Proximity Caves | Joined by bewildered Wizard 26257 | -5/Proximity Caves | Entered Factory 26257 | -5/Factory | Accompanied by 4 allies 26257 | -5/Factory | Evolved 2 slots: Propulsion x1, Utility x1 26258 | -5/Factory | Loaded intel: 4 garrison access locations 26326 | -5/Factory | Joined by bewildered Wizard 26350 | -5/Factory | Fabricated Mni. Smartbomb Launcher? 26527 | -5/Factory | Discovered new exit (range 16) 26543 | -5/Factory | Joined by bewildered Wizard 26557 | -5/Factory | Search patrols dispatched 26568 | -5/Factory | Repaired Imp. System Restoration Module? 26626 | -5/Factory | Joined by bewildered Wizard 26626 | -5/Factory | Joined by bewildered Wizard 26630 | -5/Factory | Joined by bewildered Wizard 26692 | -5/Factory | Build established: Hacker-Ninja 26707 | -5/Factory | Discovered new exit (range 19) 26708 | -5/Factory | Joined by bewildered Wizard 26709 | -5/Factory | Joined by bewildered Wizard 26718 | -5/Factory | Identified exit to Factory 26740 | -5/Factory | Identified exit to Upper Caves 26740 | -5/Factory | Identified exit to Extension 26743 | -5/Factory | Learned Extension security intel 26750 | -5/Factory | Garrison activated, responded to threat 26752 | -5/Factory | Fabricated Combat Drone Bay? 26783 | -5/Factory | Learned 2 Proximity Caves zone layouts 26811 | -5/Factory | Learned location of Warlord (-4) 26823 | -5/Factory | Joined by bewildered Wizard 26826 | -5/Factory | Joined by bewildered Wizard 26831 | -5/Factory | Learned 4 Research zone layouts 26844 | -5/Factory | Learned 2 Extension zone layouts 26845 | -5/Factory | Learned Quarantine stockpile data 26852 | -5/Factory | Learned location of Upper Caves (-5) 27004 | -5/Factory | Fabricated Exp. Utility Shielding? 27160 | -5/Factory | Scrapoid reinforcements arrived 27207 | -5/Factory | Lost 3 allies 27283 | -5/Factory | Sucked down chute 27283 | -5/Factory | Entered Waste 27284 | -5/Waste | Met a frightened Derelict 27284 | -5/Waste | Identified exit to Factory 27294 | -5/Waste | Spotted C-40 Crusher 27295 | -5/Waste | Spotted C-40 Crusher 27298 | -5/Waste | EMP discharged 27301 | -5/Waste | Spotted C-40 Crusher 27307 | -5/Waste | Entered Factory 27405 | -5/Factory | Spotted B-75 Beast 27584 | -5/Factory | Fabricated Adv. System Restoration Module? 27643 | -5/Factory | Build established: Hacker-Scout 27895 | -5/Factory | Repaired Adv. Terrain Scanner 27901 | -5/Factory | Joined by bewildered Wizard 27901 | -5/Factory | Joined by bewildered Wizard 27901 | -5/Factory | Joined by bewildered Wizard 27904 | -5/Factory | Joined by bewildered Wizard 27922 | -5/Factory | Fabricated Cld. Nuclear Pulse Thruster (x1) 28129 | -5/Factory | Fabricated Cld. Nuclear Pulse Thruster? 28218 | -5/Factory | Discovered exit to Factory (range 13) 28243 | -5/Factory | Discovered exit to Factory (range 8) 28249 | -5/Factory | Joined by bewildered Wizard 28249 | -5/Factory | Joined by bewildered Wizard 28249 | -5/Factory | Joined by bewildered Wizard 28321 | -5/Factory | Learned 4 Quarantine zone layouts 28348 | -5/Factory | Fabricated Exp. Utility Shielding? 28402 | -5/Factory | Joined by bewildered Wizard 28449 | -5/Factory | Learned Extension stockpile data 28496 | -5/Factory | Learned location of 1 exit from Research 28500 | -5/Factory | Joined by bewildered Wizard 28501 | -5/Factory | Joined by bewildered Wizard 28532 | -5/Factory | Learned location of Extension (-5) 28556 | -5/Factory | Repaired Lgt. Ion Engine 28575 | -5/Factory | Learned location of 1 exit from Armory 28603 | -5/Factory | Learned Extension stockpile data 28642 | -5/Factory | Learned location of 1 exit from Armory 28647 | -5/Factory | Repaired Mni. Smartbomb Launcher 28693 | -5/Factory | Learned 4 Extension zone layouts 28729 | -5/Factory | Repaired Exp. Utility Shielding 28756 | -5/Factory | Learned 4 Testing zone layouts 28858 | -5/Factory | Entered Extension 28858 | -5/Extension | Accompanied by 2 allies 28859 | -5/Extension | Identified exit to Cetus 29246 | -5/Extension | Learned location of Upper Caves (-4) 29313 | -5/Extension | Learned Research emergency access door positions 29332 | -5/Extension | Learned Research stockpile data 29342 | -5/Extension | Learned 8 Factory zone layouts 29344 | -5/Extension | Learned Research trap positions 29345 | -5/Extension | Learned Testing non-interactive machine intel 29356 | -5/Extension | Learned Factory garrison access intel 29366 | -5/Extension | Rescued A7 29577 | -5/Extension | Spotted B-75 Beast 29600 | -5/Extension | Allies destroyed B-75 Beast 29605 | -5/Extension | Spotted B-75 Beast 29624 | -5/Extension | Build established: Hacker-Mutant 29631 | -5/Extension | Allies destroyed B-75 Beast 29664 | -5/Extension | Rescued a captive Derelict 29680 | -5/Extension | Central database locked down 29927 | -5/Extension | Build established: Hacker-Assassin 30181 | -5/Extension | Entered Cetus 30181 | -5/Cetus | Accompanied by 13 allies (A7) 30186 | -5/Cetus | Acquired a Cetus Manufacturing Module code from A7 30203 | -5/Cetus | Spotted Cetus Guard 30203 | -5/Cetus | Spotted Cetus Guard 30203 | -5/Cetus | Spotted Cetus Guard 30203 | -5/Cetus | Spotted Cetus Guard 30221 | -5/Cetus | Allies destroyed Cetus Guard 30223 | -5/Cetus | Allies destroyed Cetus Guard 30230 | -5/Cetus | Allies destroyed Cetus Guard 30235 | -5/Cetus | Allies destroyed Cetus Guard 30263 | -5/Cetus | Lost 5 allies 30295 | -5/Cetus | Escorted A7 to Cetus Mainframe 30301 | -5/Cetus | Started Cetus Manufacturing Module 30326 | -5/Cetus | Manufactured an Enhanced Grunt 30351 | -5/Cetus | Manufactured an Enhanced Grunt 30352 | -5/Cetus | Discovered new exit (range 21) 30376 | -5/Cetus | Manufactured an Enhanced Grunt 30401 | -5/Cetus | Manufactured an Enhanced Grunt 30426 | -5/Cetus | Manufactured an Enhanced Grunt 30498 | -5/Cetus | Discovered exit to Factory (range 36) 30499 | -5/Cetus | Spotted Cetus Guard 30502 | -5/Cetus | Spotted Cetus Guard 30522 | -5/Cetus | Allies destroyed Cetus Guard 30533 | -5/Cetus | Allies destroyed Cetus Guard 30537 | -5/Cetus | Allies destroyed Cetus Guard 30540 | -5/Cetus | Spotted Cetus Guard 30542 | -5/Cetus | Allies destroyed Cetus Guard 30544 | -5/Cetus | Found Prototype Device 30544 | -5/Cetus | Identified Exp. Thermal Shield 30561 | -5/Cetus | Extracted ID and sensor layout for unrecognized location from A7's data core 30569 | -5/Cetus | Lost 5 allies 30595 | -5/Cetus | Met Revision 17 30622 | -5/Cetus | Identified exit to Archives 30656 | -5/Cetus | Entered Archives 30656 | -5/Archives | Accompanied by 9 allies 30657 | -5/Archives | Identified exit to Hub_04(d) 30743 | -5/Archives | Unable to access archive contents 30780 | -5/Archives | Discovered exit to Hub_04(d) (range 14) 33030 | -5/Archives | Entered Hub_04(d) 33030 | -5/Hub_04(d) | Accompanied by 7 allies 33140 | -5/Hub_04(d) | Discovered exit to Factory (range 5) 33272 | -5/Hub_04(d) | Garrison activated, responded to threat 33285 | -5/Hub_04(d) | Build established: Hacker-Scout 33350 | -5/Hub_04(d) | Lost 3 allies 33666 | -5/Hub_04(d) | Network Hub disabled 33757 | -5/Hub_04(d) | Network Hub disabled 33778 | -5/Hub_04(d) | Network Hub disabled 33778 | -5/Hub_04(d) | Network Hub disabled 33817 | -5/Hub_04(d) | Entered Factory 33817 | -4/Factory | Evolved 2 slots: Utility x2 33818 | -4/Factory | Identified exit to Research 33820 | -4/Factory | Loaded intel: 4 garrison access locations 33882 | -4/Factory | Joined by bewildered Wizard 33883 | -4/Factory | Joined by bewildered Wizard 33908 | -4/Factory | Joined by bewildered Wizard 33908 | -4/Factory | Joined by bewildered Wizard 33972 | -4/Factory | Joined by bewildered Wizard 33972 | -4/Factory | Joined by bewildered Wizard 34003 | -4/Factory | Identified exit to Upper Caves 34036 | -4/Factory | Joined by bewildered Wizard 34051 | -4/Factory | Joined by bewildered Wizard 34124 | -4/Factory | Lost 3 allies 34138 | -4/Factory | Fabricated G-67 Veteran? 34146 | -4/Factory | Joined by bewildered Wizard 34146 | -4/Factory | Joined by bewildered Wizard 34178 | -4/Factory | Learned Quarantine trap positions 34198 | -4/Factory | Learned 4 Testing zone layouts 34209 | -4/Factory | Learned Research interactive machine intel 34220 | -4/Factory | Found Exp. Signal Interpreter 34228 | -4/Factory | Learned 8 Research zone layouts 34258 | -4/Factory | Central database locked down 34604 | -4/Factory | Fabricated Exp. Hacking Suite? 34612 | -4/Factory | Scrapoids reinforcements arrived? 34647 | -4/Factory | Noticed a derelict Sapper rigging charges 34657 | -4/Factory | Spotted B-86 Titan 34937 | -4/Factory | Build established: Wizard-Scout 35023 | -4/Factory | Learned 8 Testing zone layouts 35065 | -4/Factory | Loaded intel: 70 trap records 35095 | -4/Factory | Learned Quarantine terminal intel 35148 | -4/Factory | Learned 2 Proximity Caves zone layouts 35190 | -4/Factory | Learned location of 1 exit from Proximity Caves 35263 | -4/Factory | Fabricated Adv. Corruption Screen (x2) 35281 | -4/Factory | Manually triggered Chute Trap 35281 | -4/Factory | Sucked down chute 35281 | -4/Factory | Entered Waste 35281 | -4/Waste | Met up with 1 ally sucked down the chute earlier 35282 | -4/Waste | Met a frightened Derelict 35284 | -4/Waste | Spotted C-40 Crusher 35286 | -4/Waste | 1 allies followed down the chute 35289 | -4/Waste | Spotted C-40 Crusher 35289 | -4/Waste | Spotted C-40 Crusher 35290 | -4/Waste | Spotted C-40 Crusher 35296 | -4/Waste | EMP discharged 35300 | -4/Waste | Discovered new exit (range 22) 35300 | -4/Waste | Spotted C-40 Crusher 35301 | -4/Waste | Spotted C-40 Crusher 35306 | -4/Waste | Identified exit to Factory 35307 | -4/Waste | Entered Factory 35358 | -4/Factory | Joined by bewildered Wizard 35413 | -4/Factory | Joined by bewildered Wizard 35413 | -4/Factory | Joined by bewildered Wizard 35426 | -4/Factory | Joined by bewildered Wizard 35513 | -4/Factory | Lost 3 allies 35517 | -4/Factory | Joined by bewildered Wizard 35519 | -4/Factory | Joined by bewildered Wizard 35519 | -4/Factory | Joined by bewildered Wizard 35573 | -4/Factory | Joined by bewildered Wizard 36271 | -4/Factory | Repaired Lgt. Ion Engine 36357 | -4/Factory | Fabricated Exp. Terrain Scan Processor (x1) 36367 | -4/Factory | Fabricated Exp. Hacking Suite? 36787 | -4/Factory | Fabricated Exp. Hacking Suite? 36879 | -4/Factory | Scrapoids reinforcements arrived? 36892 | -4/Factory | Scrapoid reinforcements arrived 36980 | -4/Factory | Lost 4 allies 37097 | -4/Factory | Central database locked down 37160 | -4/Factory | Fabricated Quantum Shading Machine? 37214 | -4/Factory | Fabricated Y-64 Sentinel? 37403 | -4/Factory | Fabricated Graviton Reactor? 37540 | -4/Factory | Spotted B-86 Titan 37572 | -4/Factory | Fabricated Graviton Reactor? 37636 | -4/Factory | Fabricated Exp. Hacking Suite (x1) 37717 | -4/Factory | Garrison activated, responded to threat 37810 | -4/Factory | Learned Quarantine emergency access door positions 37831 | -4/Factory | Learned location of 1 exit from Upper Caves 37846 | -4/Factory | Learned Armory security intel 37847 | -4/Factory | Learned location of 2 exits from Proximity Caves 37848 | -4/Factory | Learned Armory stockpile data 37850 | -4/Factory | Learned 4 Quarantine zone layouts 37856 | -4/Factory | Learned location of 1 exit from Armory 37965 | -4/Factory | Found Exp. ECM Suite 38057 | -4/Factory | First assault squad dispatched 38313 | -4/Factory | Entered Upper Caves 38314 | -4/Upper Caves | Identified exit to Upper Caves 38375 | -4/Upper Caves | A Derelict revealed a hidden shortcut to "reach the base" 38378 | -4/Upper Caves | Learned location of Quarantine (-2) 38389 | -4/Upper Caves | Joined by bewildered Wizard 38390 | -4/Upper Caves | Joined by bewildered Wizard 38390 | -4/Upper Caves | Joined by bewildered Wizard 38481 | -4/Upper Caves | Joined by bewildered Wizard 38517 | -4/Upper Caves | Joined by bewildered Wizard 38675 | -4/Upper Caves | Build established: Wizard-Sprinter 38686 | -4/Upper Caves | Joined by bewildered Wizard 38686 | -4/Upper Caves | Joined by bewildered Wizard 38691 | -4/Upper Caves | Lost 3 allies 38748 | -4/Upper Caves | Joined by bewildered Wizard 38836 | -4/Upper Caves | Found DCF Scrap (13 items) 39034 | -4/Upper Caves | Entered another Upper Caves area 39036 | -4/Upper Caves | Encountered a Warlord checkpoint 39068 | -4/Upper Caves | Joined by bewildered Wizard 39068 | -4/Upper Caves | Joined by bewildered Wizard 39069 | -4/Upper Caves | Joined by bewildered Wizard 39180 | -4/Upper Caves | Discovered exit to Research (range 18) 39211 | -4/Upper Caves | Joined by bewildered Wizard 39217 | -4/Upper Caves | Joined by bewildered Wizard 39283 | -4/Upper Caves | Learned Research garrison access intel 39331 | -4/Upper Caves | Joined by bewildered Wizard 39332 | -4/Upper Caves | Build established: Wizard-Assassin 39589 | -4/Upper Caves | Learned location of 1 exit from Research 39647 | -4/Upper Caves | Discovered new exit (range 15) 39879 | -4/Upper Caves | Learned Factory emergency access door positions 39879 | -4/Upper Caves | Learned Armory emergency access door positions 39879 | -4/Upper Caves | Learned Extension stockpile data 39879 | -4/Upper Caves | Learned Armory terminal intel 39880 | -4/Upper Caves | Attracted the attention of an 0b10 base 39892 | -4/Upper Caves | Identified exit to Warlord 40144 | -4/Upper Caves | Build established: Wizard-Sprinter 40180 | -4/Upper Caves | Entered Warlord 40180 | -4/Warlord | Accompanied by 4 allies 40197 | -4/Warlord | Discovered new exit (range 17) 40375 | -4/Warlord | Rebuked by Warlord 40377 | -4/Warlord | Warlord's base attacked by MAIN.C 40385 | -4/Warlord | Opened Warlord's prototype stash 40387 | -4/Warlord | Found Prototype Device 40387 | -4/Warlord | Identified Exp. Focal Shield 40398 | -4/Warlord | Found Prototype Reactor 40398 | -4/Warlord | Identified Vortex Chain Reactor 40498 | -4/Warlord | Found Prototype Energy Gun 40498 | -4/Warlord | Identified Vortex Rifle 40625 | -4/Warlord | Lost 3 allies 40714 | -4/Warlord | Spotted Striker 40718 | -4/Warlord | Spotted Executioner 40724 | -4/Warlord | Allies destroyed Striker 40727 | -4/Warlord | Warlord forces counterattacked 40735 | -4/Warlord | Spotted Executioner 40755 | -4/Warlord | Identified exit to Proximity Caves 40765 | -4/Warlord | Lost 11 allies 40768 | -4/Warlord | Entered Proximity Caves 40768 | -3/Proximity Caves | Accompanied by 4 allies 40992 | -3/Proximity Caves | Joined by bewildered Wizard 41077 | -3/Proximity Caves | Build established: Wizard-Assassin 41193 | -3/Proximity Caves | Learned Extension emergency access door positions 41193 | -3/Proximity Caves | Learned Factory garrison access intel 41199 | -3/Proximity Caves | Attracted the attention of an 0b10 base 41205 | -3/Proximity Caves | Joined by bewildered Wizard 41205 | -3/Proximity Caves | Joined by bewildered Wizard 41206 | -3/Proximity Caves | Joined by bewildered Wizard 41246 | -3/Proximity Caves | Lost 6 allies 41249 | -3/Proximity Caves | Joined by bewildered Wizard 41249 | -3/Proximity Caves | Joined by bewildered Wizard 41499 | -3/Proximity Caves | Entered Research 41499 | -3/Research | Accompanied by 3 allies 41499 | -3/Research | Evolved 2 slots: Utility x2 41500 | -3/Research | Identified exit to Testing 41501 | -3/Research | Identified exit to Research 41501 | -3/Research | Identified exit to Armory 41503 | -3/Research | Loaded intel: 114 trap records 41506 | -3/Research | Loaded intel: 113 machine locations 41507 | -3/Research | Loaded intel: 69 non-interactive machine locations 41508 | -3/Research | Loaded intel: 44 interactive machine locations 41509 | -3/Research | Loaded intel: 23 terminal locations 41510 | -3/Research | Loaded intel: 3 garrison access locations 41574 | -3/Research | Joined by bewildered Wizard 41613 | -3/Research | Central database locked down 41683 | -3/Research | Joined by bewildered Wizard 41683 | -3/Research | Joined by bewildered Wizard 41699 | -3/Research | Revision forces began assault on 0b10 41724 | -3/Research | Learned location of 1 exit from Quarantine 41773 | -3/Research | Learned Research emergency access door positions 41780 | -3/Research | Build established: Wizard-Ninja 41783 | -3/Research | Learned Access garrison access intel 41802 | -3/Research | Learned location of 1 exit from Research 41802 | -3/Research | Repaired Graviton Reactor? 41833 | -3/Research | Learned Research trap positions 41862 | -3/Research | Fabricated Adv. Cloaking Device? 41881 | -3/Research | Fabricated Nanosword? 41932 | -3/Research | Met up with Revision 17++ 41977 | -3/Research | Lost 3 allies 42102 | -3/Research | Learned Access stockpile data 42199 | -3/Research | Research terminal network offline 42331 | -3/Research | Found Spectral Analyzer 42369 | -3/Research | Spotted Executioner 42382 | -3/Research | Found Prototype Processor 42382 | -3/Research | Identified Exp. Core Analyzer 42467 | -3/Research | Entered Testing 42470 | -3/Testing | Loaded intel: 53 non-interactive machine locations 42617 | -3/Testing | Spotted PX-O2ICAQE7F0 42746 | -3/Testing | Fabricated Femtoactuators? 42819 | -3/Testing | Rewired PX-O2ICAQE7F0 42890 | -3/Testing | Destroyed PX-O2ICAQE7F0 42990 | -3/Testing | Build established: Wizard-Sprinter 42999 | -3/Testing | Spotted Striker 43000 | -3/Testing | Spotted Striker 43129 | -3/Testing | Found Prototype Energy Cannon 43129 | -3/Testing | Identified Disintegrator 43167 | -3/Testing | Found Prototype Ballistic Cannon 43167 | -3/Testing | Identified Omega Cannon 43228 | -3/Testing | Repaired Exp. Utility Shielding? 43254 | -3/Testing | Fabricated Exp. Weapon Cycler? 43295 | -3/Testing | Found Prototype Device 43304 | -3/Testing | Identified Exp. Shield Generator 43370 | -3/Testing | Found Prototype Energy Cannon 43370 | -3/Testing | Identified Cld. Nova Cannon 43460 | -3/Testing | Central database locked down 43541 | -3/Testing | Found Prototype Ballistic Cannon 43541 | -3/Testing | Identified Perforator 43552 | -3/Testing | Entered Research 43552 | -2/Research | Evolved 2 slots: Propulsion x1, Weapon x1 43553 | -2/Research | Identified exit to Quarantine 43554 | -2/Research | Loaded intel: 71 trap records 43555 | -2/Research | Identified exit to Access 43611 | -2/Research | Joined by bewildered Wizard 43639 | -2/Research | Joined by bewildered Wizard 43641 | -2/Research | Joined by bewildered Wizard 43643 | -2/Research | Joined by bewildered Wizard 43792 | -2/Research | Garrison activated, responded to threat 43796 | -2/Research | Joined by bewildered Wizard 43809 | -2/Research | Scrapoids reinforcements arrived? 43831 | -2/Research | Lost 3 allies 43849 | -2/Research | Scrapoids reinforcements arrived? 43950 | -2/Research | Lost 3 allies 44317 | -2/Research | Scrapoids reinforcements arrived? 44552 | -2/Research | First assault squad dispatched 44600 | -2/Research | Fabricated Adv. Quantum Shading Machine (x1) 44695 | -2/Research | Fabricated Zero-point Reactor (x1) 44705 | -2/Research | Lost 3 allies 44888 | -2/Research | Found Adv. Force Booster 44919 | -2/Research | Entered Quarantine 44920 | -2/Quarantine | Identified exit to Section 7 44922 | -2/Quarantine | Loaded intel: 23 trap records 44925 | -2/Quarantine | Loaded intel: 16 terminal locations 44937 | -2/Quarantine | Found Alien Slashing Weapon 44937 | -2/Quarantine | Identified Sigix Broadsword 45028 | -2/Quarantine | Found Alien Artifact 45028 | -2/Quarantine | Identified Core Reset Matrix 45028 | -2/Quarantine | Used Core Reset Matrix 45032 | -2/Quarantine | Detected hypermatrix surge 45032 | -2/Quarantine | Sensed 16 artifacts in vicinity 45073 | -2/Quarantine | Central database locked down 45100 | -2/Quarantine | Discovered exit to Access (range 16) 45111 | -2/Quarantine | Cryocooling Duct disabled 45126 | -2/Quarantine | Ambient heat levels rising (+20) 45126 | -2/Quarantine | Non-combat units ordered to evacuate 45149 | -2/Quarantine | Found Core Stripper 45167 | -2/Quarantine | Repaired Mni. Smartbomb Launcher? 45223 | -2/Quarantine | Learned Research stockpile data 45227 | -2/Quarantine | Found Subatomic Replicator 45242 | -2/Quarantine | Build established: Wizard-Ninja 45304 | -2/Quarantine | Learned Access garrison access intel 45348 | -2/Quarantine | Learned Section 7 emergency access door positions 45357 | -2/Quarantine | Learned Access scanalyzer intel 45377 | -2/Quarantine | Learned Section 7 emergency access door positions 45406 | -2/Quarantine | Learned 8 Research zone layouts 45443 | -2/Quarantine | Learned Research emergency access door positions 45587 | -2/Quarantine | Repaired Cld. Field Propulsion Drive 45640 | -2/Quarantine | Learned Research terminal intel 45751 | -2/Quarantine | Learned Access recycling unit intel 45760 | -2/Quarantine | Found Dimensional Node Initializer 45793 | -2/Quarantine | Learned Section 7 trap positions 45825 | -2/Quarantine | Learned Research stockpile data 45849 | -2/Quarantine | Learned 4 Access zone layouts 45864 | -2/Quarantine | Learned Research security intel 45891 | -2/Quarantine | Learned Section 7 trap positions 45899 | -2/Quarantine | Spotted Fortress 45930 | -2/Quarantine | Learned 8 Access zone layouts 45933 | -2/Quarantine | Entered Section 7 45934 | -2/Section 7 | Sensed 20 artifacts in vicinity 45935 | -2/Section 7 | Loaded intel: 27 trap records 45950 | -2/Section 7 | Central database locked down 46107 | -2/Section 7 | Found Integrated Mediator 46107 | -2/Section 7 | Installed Integrated Mediator, increased core attachment efficiency 46163 | -2/Section 7 | Found Integrated Dissipator 46163 | -2/Section 7 | Installed Integrated Dissipator, increased core heat dissipation (+20) 46266 | -2/Section 7 | Spotted S7 Guard 46267 | -2/Section 7 | Found Core Membrane 46269 | -2/Section 7 | Installed Core Membrane, gained immunity to corruption 46315 | -2/Section 7 | Initialized slip node 46361 | -2/Section 7 | Learned Research scanalyzer intel 46364 | -2/Section 7 | Spotted B-99 Colossus 46370 | -2/Section 7 | Spotted Alpha 7 46383 | -2/Section 7 | Found Integrity Redistributor 46398 | -2/Section 7 | Learned 4 Research zone layouts 46402 | -2/Section 7 | Found LRC Storage 46402 | -2/Section 7 | Installed LRC Storage, increased inventory capacity (+2) 46407 | -2/Section 7 | Found LRC Inertial Stabilizer 46423 | -2/Section 7 | Learned 4 Research zone layouts 46440 | -2/Section 7 | Learned Research garrison access intel 46447 | -2/Section 7 | Learned location of 1 exit from Research 46448 | -2/Section 7 | Learned Access trap positions 46450 | -2/Section 7 | Learned Research emergency access door positions 46454 | -2/Section 7 | Installed LRC Inertial Stabilizer, increased mass support (+10) 46465 | -2/Section 7 | Found Matter Drive 46475 | -2/Section 7 | Learned Access security intel 46508 | -2/Section 7 | Found Transdimensional Reconstructor 46510 | -2/Section 7 | Found Hpw. Transdimensional Reconstructor 46513 | -2/Section 7 | Found Transdimensional Reconstructor 46513 | -2/Section 7 | Warped through subspace to slip node 46526 | -2/Section 7 | Entered Access 46526 | -1/Access | Evolved 1 slot: Weapon x1 46527 | -1/Access | Identified exit to Surface 46528 | -1/Access | Loaded intel: 79 trap records 46530 | -1/Access | Loaded intel: 4 recycling unit locations 46531 | -1/Access | Loaded intel: 4 scanalyzer locations 46532 | -1/Access | Loaded intel: 5 garrison access locations 46715 | -1/Access | Fabricated Weapon Mount? 46735 | -1/Access | Fabricated Exp. Phase Shifter (x1) 47006 | -1/Access | Repaired Cld. Field Propulsion Drive? 47048 | -1/Access | Repaired Cld. Field Propulsion Drive? 47290 | -1/Access | Used Subatomic Replicator to replicate Integrity Redistributor 47340 | -1/Access | Fabricated Exp. Actuator Array (x1) 47641 | -1/Access | Spotted B-99 Colossus 47776 | -1/Access | First assault squad dispatched 47814 | -1/Access | Fabricated Exp. Energy Well (x1) 47846 | -1/Access | Scrapoids reinforcements arrived? 48186 | -1/Access | Repaired Exp. Utility Shielding 48223 | -1/Access | Repaired Imp. Diametric Drive 48296 | -1/Access | Central database locked down 48479 | -1/Access | Destroyed 20 combat bots 48567 | -1/Access | Build established: Alien-Sprinter 48567 | -1/Access | Destroyed 10 combat bots 48608 | -1/Access | High security lockdown imminent 48688 | -1/Access | High security lockdown engaged 48845 | -1/Access | Spotted Executioner 48845 | -1/Access | Spotted Striker 48845 | -1/Access | Spotted Striker 48847 | -1/Access | Destroyed Striker 48847 | -1/Access | Destroyed Executioner 48851 | -1/Access | Destroyed Striker 49108 | -1/Access | Found Prototype Processor 49108 | -1/Access | Identified Exp. Targeting Computer 49111 | -1/Access | Found Prototype Processor 49111 | -1/Access | Identified Exp. Core Analyzer 49248 | -1/Access | Spotted Executioner 49248 | -1/Access | Spotted Executioner 49248 | -1/Access | Spotted Striker 49248 | -1/Access | Destroyed Executioner 49248 | -1/Access | Destroyed Executioner 49285 | -1/Access | Destroyed 13 combat bots 49292 | -1/Access | Spotted Striker 49297 | -1/Access | Destroyed Striker 49322 | -1/Access | Destroyed 13 combat bots 49369 | -1/Access | Sterilization system engaged 49536 | -1/Access | Found Prototype Processor 49540 | -1/Access | Identified Exp. Melee Analysis Suite 49648 | -1/Access | Found Prototype Device 49669 | -1/Access | Ambient heat levels rising (+10) 49670 | -1/Access | Identified Exp. Thermal Shield 49678 | -1/Access | Found Exp. Shock Absorption System 49796 | -1/Access | Found Exp. Melee Analysis Suite 49819 | -1/Access | Ambient heat levels rising (+10) 49836 | -1/Access | Spotted B-99 Colossus 49867 | -1/Access | Spotted B-99 Colossus 49869 | -1/Access | Spotted B-99 Colossus 49870 | -1/Access | Discovered new exit (range 7) 49871 | -1/Access | Entered Command 49907 | -1/Command | Scrapoids reinforcements arrived? 49975 | -1/Command | Disengaged cave seal 49991 | -1/Command | Repaired Exp. Utility Shielding? 50016 | -1/Command | High security lockdown imminent 50096 | -1/Command | High security lockdown engaged 50134 | -1/Command | Destroyed AG-90233 50182 | -1/Command | Phase Generator disabled 50184 | -1/Command | Spotted Executioner 50185 | -1/Command | Spotted Executioner 50186 | -1/Command | Destroyed Executioner 50186 | -1/Command | Destroyed Striker 50190 | -1/Command | Destroyed Executioner 50222 | -1/Command | Destroyed 13 combat bots 50223 | -1/Command | Lost 3 allies 50272 | -1/Command | Spotted Striker 50276 | -1/Command | Destroyed Striker 50279 | -1/Command | Destroyed Investigator 50327 | -1/Command | Destroyed 12 combat bots 50330 | -1/Command | Lost 6 allies 50394 | -1/Command | Destroyed Striker 50397 | -1/Command | Spotted Striker 50400 | -1/Command | Destroyed Striker 50401 | -1/Command | Spotted Executioner 50402 | -1/Command | Destroyed Executioner 50404 | -1/Command | Spotted Executioner 50404 | -1/Command | Destroyed Executioner 50409 | -1/Command | Spotted Striker 50411 | -1/Command | Destroyed Striker 50414 | -1/Command | Spotted Executioner 50415 | -1/Command | Destroyed Executioner 50424 | -1/Command | Spotted Striker 50424 | -1/Command | Spotted Executioner 50424 | -1/Command | Spotted Striker 50425 | -1/Command | Destroyed Striker 50427 | -1/Command | Destroyed Striker 50432 | -1/Command | Spotted Executioner 50432 | -1/Command | Spotted Executioner 50434 | -1/Command | Destroyed Executioner 50436 | -1/Command | Destroyed Executioner 50441 | -1/Command | Lost 5 allies 50473 | -1/Command | Destroyed 20 combat bots 50505 | -1/Command | Destroyed AG-49774 50610 | -1/Command | Destroyed Striker 50612 | -1/Command | Spotted Executioner 50614 | -1/Command | Destroyed Executioner 50646 | -1/Command | Destroyed Executioner 50650 | -1/Command | Spotted Executioner 50650 | -1/Command | Spotted Striker 50655 | -1/Command | Destroyed Executioner 50657 | -1/Command | Destroyed Striker 50669 | -1/Command | Spotted Striker 50671 | -1/Command | Destroyed Striker 50708 | -1/Command | Destroyed 24 combat bots 50873 | -1/Command | Spotted Executioner 50873 | -1/Command | Spotted Executioner 50873 | -1/Command | Spotted Executioner 50873 | -1/Command | Spotted Executioner 50874 | -1/Command | Spotted Striker 50874 | -1/Command | Spotted Executioner 50877 | -1/Command | Destroyed Executioner 50877 | -1/Command | Destroyed Executioner 50879 | -1/Command | Destroyed Striker 50879 | -1/Command | Destroyed Executioner 50881 | -1/Command | Destroyed Executioner 50889 | -1/Command | Spotted Executioner 50889 | -1/Command | Spotted Executioner 50889 | -1/Command | Spotted Executioner 50889 | -1/Command | Destroyed Executioner 50891 | -1/Command | Destroyed Executioner 50893 | -1/Command | Destroyed Executioner 50898 | -1/Command | Spotted Striker 50898 | -1/Command | Spotted Striker 50898 | -1/Command | Destroyed Striker 50900 | -1/Command | Destroyed Striker 50909 | -1/Command | Destroyed Executioner 50922 | -1/Command | Destroyed Executioner 50944 | -1/Command | Lost 3 allies 50966 | -1/Command | Destroyed 33 combat bots 51181 | -1/Command | Spotted Executioner 51181 | -1/Command | Spotted Striker 51181 | -1/Command | Spotted Executioner 51185 | -1/Command | Destroyed Executioner 51188 | -1/Command | Destroyed Striker 51190 | -1/Command | Destroyed Executioner 51208 | -1/Command | Destroyed Striker 51210 | -1/Command | Spotted Executioner 51210 | -1/Command | Destroyed Executioner 51237 | -1/Command | Destroyed 14 combat bots 51799 | -1/Command | Found Prototype Launcher 51799 | -1/Command | Identified Containment Facilitator 51805 | -1/Command | Found Prototype Device 51805 | -1/Command | Identified Adv. Kinecellerator 52088 | -1/Command | Found Unknown Device 52088 | -1/Command | Identified Scrap Suit 52174 | -1/Command | Spotted M Guard 52174 | -1/Command | Spotted M Guard 52411 | -1/Command | Spotted Combat Programmer 52411 | -1/Command | Spotted Combat Programmer 52448 | -1/Command | Destroyed Combat Programmer 52451 | -1/Command | Destroyed Combat Programmer 52789 | -1/Command | Found Exp. Targeting Computer 52938 | -1/Command | Destroyed M Guard 52956 | -1/Command | Destroyed M Guard 52956 | -1/Command | All MAIN.C guards destroyed 52967 | -1/Command | Found Prototype Device 52967 | -1/Command | Identified Thermal Barrier 52971 | -1/Command | Found Prototype Protection 52971 | -1/Command | Identified Hvy. Regenerative Plating 53508 | -1/Command | Found Zero-point Reactor 53834 | -1/Command | Build established: Alien-Gladiator 54102 | -1/Command | Met MAIN.C 54107 | -1/Command | 0b10 Conduit disabled 54137 | -1/Command | Destroyed MAIN.C Shell 54139 | -1/Command | MAIN.C activated Command garrisons 54172 | -1/Command | Used Integrity Redistributor, redistributed integrity from core (-148) 54180 | -1/Command | Destroyed MAIN.C 54181 | -1/Command | Discovered exit to Surface (range 43) 54181 | -1/Command | Discovered exit to Surface (range 84) 54181 | -1/Command | Extracted map data and part IDs from MAIN.C's data core 54181 | -1/Command | Found Exp. Powered Armor 54184 | -1/Command | Found Omega Cannon 54366 | -1/Command | Build established: Alien-Sprinter 55632 | -1/Command | Found AEGIS Remote Shield 56150 | -1/Command | Build established: Alien-Gladiator 56197 | -1/Command | Found Centrium Heavy Armor Plating 56387 | -1/Command | Warped through subspace to slip node 56387 | -1/Command | Discovered new exit (range 4) 56392 | -1/Command | Entered Access_0 56393 | -1/Access_0 | Sensed 3 artifacts in vicinity 56393 | -1/Access_0 | Met Architect 56407 | -1/Access_0 | Architect warped through subspace 56428 | -1/Access_0 | Destroyed A8 56460 | -1/Access_0 | Architect warped through subspace 56487 | -1/Access_0 | Build established: Alien-Sprinter 56488 | -1/Access_0 | Architect warped through subspace 56525 | -1/Access_0 | A6 warped into view 56553 | -1/Access_0 | Subspace Access Node disabled 56570 | -1/Access_0 | Subspace Access Node disabled 56594 | -1/Access_0 | A5 warped into view 56637 | -1/Access_0 | Architect warped through subspace 56644 | -1/Access_0 | Found Sigix Broadsword 56658 | -1/Access_0 | Architect warped through subspace 56719 | -1/Access_0 | A4 warped into view 56726 | -1/Access_0 | Subspace Access Node disabled 56798 | -1/Access_0 | Architect warped through subspace 56833 | -1/Access_0 | Architect warped through subspace 56857 | -1/Access_0 | Architect warped through subspace 56874 | -1/Access_0 | Subspace Access Node disabled 56878 | -1/Access_0 | Used Integrity Redistributor, redistributed integrity from core (-128) 56902 | -1/Access_0 | Singularity Gate disabled 56923 | -1/Access_0 | A3 warped into view 57051 | -1/Access_0 | Destroyed A3 57226 | -1/Access_0 | Core integrity fell below 50% 57242 | -1/Access_0 | Destroyed A6 57330 | -1/Access_0 | Destroyed A2 57365 | -1/Access_0 | Destroyed A5 57471 | -1/Access_0 | Destroyed Architect 57472 | -1/Access_0 | Extracted unknown sensor trigger ID from Architect's data core 57555 | -1/Access_0 | Found Exp. ECM Suite 57720 | -1/Access_0 | Destroyed A4 57810 | -1/Access_0 | Found Core Regenerator 57810 | -1/Access_0 | Used Core Regenerator, restored core integrity (+400) 57839 | -1/Access_0 | Found Hpw. Transdimensional Reconstructor 57899 | -1/Access_0 | Found Prototype Protection 57899 | -1/Access_0 | Identified Centrium Linked Plating 58074 | -1/Access_0 | Extracted Singularity Gate Test 138-C access codes from A2's data core 58075 | -1/Access_0 | Found Prototype Device 58075 | -1/Access_0 | Identified ST Field Compressor 58196 | -1/Access_0 | Found Prototype Device 58196 | -1/Access_0 | Identified Desublimator 58549 | -1/Access_0 | Found Sigix Corpse 58604 | -1/Access_0 | Found Prototype Hackware 58604 | -1/Access_0 | Identified Architect God Chip D 58606 | -1/Access_0 | Found Architect God Chip D 58608 | -1/Access_0 | Found Prototype Hackware 58608 | -1/Access_0 | Identified Architect God Chip A 58610 | -1/Access_0 | Found Exp. Core Analyzer 58612 | -1/Access_0 | Found Architect God Chip D 58624 | -1/Access_0 | Warped through subspace to slip node 58624 | -1/Access_0 | Discovered exit to Surface (range 8) 58625 | -1/Access_0 | Found Hpw. Transdimensional Reconstructor 58625 | -1/Access_0 | Warped through subspace to slip node 58629 | *** | Heading to fleet! Last Messages --------------- 58608_ Acquired 10 matter. 58608_ Acquired Prototype Hackware. 58608_ Identified Architect God Chip A. 58609_ Acquired 5 matter. 58610_ Acquired Exp. Core Analyzer. 58612_ Discarded Exp. Core Analyzer. 58612_ Acquired Architect God Chip D. 58614_ Discarded Architect God Chip D. 58615_ Discarded Architect God Chip A. 58616_ Discarded Architect God Chip D. 58616_ Acquired 10 matter. 58617_ Acquired Exp. Reaction Control System. 58618_ Acquired Exp. Phase Shifter. 58620_ Acquired Femtoactuators. 58622_ Acquired ST Field Compressor. 58623_ Acquired 20 matter. 58624_ Warped through subspace, drawn to slip node. 58624_ EXIT=FOUND: SURFACE 58625_ Acquired Hpw. Transdimensional Reconstructor. 58625_ Warped through subspace, drawn to slip node. Map ----- +----------------------------------------------------+ | | | | | | | | | | | | | | | | | | | | | | | | | | | | | | | | | ?????????????????????????????????????????????????? | | ?????????????????????????????????????????????????? | | ?????????????????????????????????????????????????? | | ?????????????????????????????????????????????????? | | ?????????????????????????????????????????????????? | | ?????????????????????????????????????????????????? | | ????????????????????????###??????????????????????? | | ???????????????????????## ##?????????????????????? | | ???????????????????????# #?????????????????????? | | ???????????????????????# @ #?????????????????????? | | ??????????????????????## #?????????????????????? | | ??????????????????????# #?????????????????????? | | ??????????????????????# ##?????????????????????? | | ??????????????????????## #?????????????????????? | | ??????????????????????# #?????????????????????? | | ??????????????????????# ##?????????????????????? | | ??????????????????????# < #?????????????????????? | | ??????????????????????# ##?????????????????????? | | ??????????????????????## #??????????????????????? | | ???????????????????????####??????????????????????? | | ?????????????????????????????????????????????????? | | ?????????????????????????????????????????????????? | | ?????????????????????????????????????????????????? | | ?????????????????????????????????????????????????? | | ?????????????????????????????????????????????????? | | ?????????????????????????????????????????????????? | | ?????????????????????????????????????????????????? | | ?????????????????????????????????????????????????? | | ?????????????????????????????????????????????????? | | ?????????????????????????????????????????????????? | | ?????????????????????????????????????????????????? | | ?????????????????????????????????????????????????? | | ?????????????????????????????????????????????????? | | ?????????????????????????????????????????????????? | +----------------------------------------------------+ Best States ------------- Heat Dissipation 72 Coolant Potential 120 Energy Generation 72 Energy Capacity 1900 Matter Stores 300 Matter Capacity 350 Sight Range 24 Robot Scan Range 20 Terrain Scan Range 20 Terrain Scan Density 1010 ECM Strength 3 Jamming Range 16 Cloak Strength 4 Power Amplification 30 Additional Mass Support 25 Corruption Block 20 Armor Coverage 1000 Resistance: KI 25 Core Shielding 20 Utility Shielding 90 Weapon Cycling 30 Melee Speed Boost 50 Phase Shifting 20 Evasion (%) 101 Targeting Accuracy 32 Melee Accuracy 12 Core Analysis 8 Armor Integrity Analysis 40 Recoil Reduction 5 Matter Filtering 30 Energy Filtering 30 Salvage Targeting 4 Offensive Hacking 100 Defensive Hacking 200 Authchip Count 2 Trap Extractor Capacity 6 Item Schematics ----------------- Adv. Phase Shifter | -2/Quarantine | Hacked Exp. Phase Shifter | -2/Quarantine | Hacked Weapon Mount | -2/Quarantine | Hacked Lgt. Quantum Reactor | -2/Quarantine | Hacked Cmb. Linear Gravjet | -2/Quarantine | Hacked Cld. Q-thruster | -2/Quarantine | Scanalyzed Exp. Actuator Array | -2/Section 7 | Hacked Exp. Biometal Medium Treads | -2/Section 7 | Hacked Exp. Biometal Heavy Treads | -2/Section 7 | Hacked Enh. Armored Heavy Treads | -2/Section 7 | Hacked Adv. Heavy Siege Treads | -2/Section 7 | Hacked Nanosword | -1/Access | Scanalyzed Exp. Energy Well | -1/Access | Hacked Prc. Matter Filter | -1/Access | Hacked Robot Schematics ------------------ None Fabricated ------------ Mni. Smartbomb Launcher | x1 | -5/Factory | Authchip Combat Drone Bay | x1 | -5/Factory | Authchip Exp. Utility Shielding | x1 | -5/Factory | Authchip Adv. System Restoration Module | x2 | -5/Factory Cld. Nuclear Pulse Thruster | x1 | -5/Factory | Authchip Cld. Nuclear Pulse Thruster | x1 | -5/Factory Exp. Utility Shielding | x1 | -5/Factory G-67 Veteran | x3 | -4/Factory | Preloaded Exp. Hacking Suite | x1 | -4/Factory | Authchip Adv. Corruption Screen | x2 | -4/Factory Exp. Terrain Scan Processor | x1 | -4/Factory | Authchip Exp. Hacking Suite | x1 | -4/Factory | Authchip Exp. Hacking Suite | x1 | -4/Factory Quantum Shading Machine | x1 | -4/Factory | Authchip Y-64 Sentinel | x2 | -4/Factory | Preloaded Graviton Reactor | x1 | -4/Factory | Authchip Graviton Reactor | x1 | -4/Factory | Authchip Exp. Hacking Suite | x1 | -4/Factory Adv. Cloaking Device | x2 | -3/Research Nanosword | x1 | -3/Research Femtoactuators | x1 | -3/Testing | Authchip Exp. Weapon Cycler | x1 | -3/Testing Adv. Quantum Shading Machine | x1 | -2/Research | Authchip Zero-point Reactor | x1 | -2/Research Weapon Mount | x2 | -1/Access Exp. Phase Shifter | x1 | -1/Access Exp. Actuator Array | x1 | -1/Access Exp. Energy Well | x1 | -1/Access Alien Tech Used ----------------- Sigix Broadsword Core Reset Matrix Core Stripper Integrated Mediator Integrated Dissipator Core Membrane Dimensional Node Initializer LRC Storage LRC Inertial Stabilizer Transdimensional Reconstructor Subatomic Replicator Matter Drive Integrity Redistributor Core Regenerator High-powered Transdimensional Reconstructor Achievements -------------- None Challenges ------------ None Game ------ Seed GammaIntegratedLeg Manual? 0 Play Time 18:25:55 Cumulative 768.8 hours Start 2024.08.29 @ 17:06:28 End 2024.09.01 @ 23:04:35 Sessions 41 Manual Loads 0 Difficulty Rogue Special Mode None Game No. 95 Rogue 80 Adventurer 5 Explorer 10 Win Type 2 Total 31 Types 6/7/9/0/3/1/4/0/1 Lore% 75 Gallery% 92 Achievement% 86 Wizard Run 0 Options --------- Layout 0 ASCII 0 Keyboard 1 Movement Numpad Keybinds 0 Fullscreen 1 Font 24/Smallcaps Map View 130x56 Zoom Use 0% Tactical HUD 1 Map Filters NONE Filters NONE Steam 1 RUN: 5de09cbd-794c-45bd-ad74-b064ecbd1205